Cogmind - Beta 11.1 --- EXPLORER MODE // 2022.06.13 @ 00:09:38 // Winter2019/RPGLIKE Player: Grimbling Result: Crushed by singularity! Performance ------------- Evolutions (9) 4500 Regions Visited (33) 6600 Robots Destroyed (462) 2310 Value Destroyed (26911) 26911 Prototype IDs (279) 5580 Alien Tech Used (11) 2200 Bonus (42002) 42002 TOTAL SCORE: 90103 Bonus ------- High Alert Combat Kills 2521 Follower Combat Kills 2934 Network Hubs Disabled 600 Met Data Miner 300 Met Zhirov 300 Met Warlord at Base 500 MAIN.C Attacked Warlord 500 Warlord Defense Kills 148 Built Enhanced Grunts 300 Met R17 at Cetus 500 Acquired SGEMP 2000 Delivered SGEMP 2000 Destroyed MAIN.C Guards 500 Met MAIN.C 5000 Destroyed MAIN.C Shell 5000 Zhirov Destroyed MAIN.C 3000 Met Warlord at Command 2000 Met Architect 300 Destroyed A8 300 Destroyed A6 400 Destroyed A5 500 Destroyed Architect 15000 Friendly Fire -2601 Cogmind --------- Core Integrity 0/1500 Matter 255/300 Energy 1980/1980 System Corruption 0% Temperature Cool (0) Movement Walking (108) Location -1/Access_0 Parts ------- > --- POWER (4) -------- Graviton Reactor Zero-point Reactor Vortex Chain Reactor > --- PROPULSION (5) --- High-density Centrium Leg High-density Centrium Leg High-density Centrium Leg Experimental Biometal Leg Experimental Biometal Leg > --- UTILITY (12) ----- Experimental Power Amplifier Experimental Energy Well Experimental Targeting Computer Experimental Core Analyzer Advanced Particle Charger Experimental Weapon Cycler Experimental Powered Armor Graphene Brace Experimental Focal Shield Improved Energy Mantle Microwarp Drive > --- WEAPON (5) ------- Enhanced Quantum Rifle Enhanced Quantum Rifle Enhanced Quantum Rifle Heavy Quantum Rifle Heavy Quantum Rifle > --- INVENTORY (7) ---- Protomatter-96 Experimental Phase Shifter Beam Splitter Experimental Shock Absorption System Experimental EM Disruption Field Peak State ------------ > --- POWER ------------ Graviton Reactor Zero-point Reactor Vortex Chain Reactor > --- PROPULSION ------- High-density Centrium Leg High-density Centrium Leg High-density Centrium Leg Experimental Biometal Leg Experimental Biometal Leg > --- UTILITY ---------- Experimental Power Amplifier Experimental Energy Well Experimental Targeting Computer Experimental Core Analyzer Advanced Particle Charger Experimental Weapon Cycler Experimental Powered Armor Graphene Brace Experimental Focal Shield Improved Energy Mantle Microwarp Drive > --- WEAPON ----------- Enhanced Quantum Rifle Enhanced Quantum Rifle Enhanced Quantum Rifle Heavy Quantum Rifle Heavy Quantum Rifle > --- INVENTORY -------- Protomatter Experimental Phase Shifter Beam Splitter Experimental Shock Absorption System Experimental EM Disruption Field [Rating: 260] Favorites ----------- Power Vortex Chain Reactor Engine F-cell Engine Power Core Micro Nuclear Core Reactor Vortex Chain Reactor Propulsion Enhanced Biometal Leg Treads Light Treads Leg Enhanced Biometal Leg Utility Advanced Particle Charger Device Advanced Particle Charger Storage Experimental Energy Well Processor Advanced Signal Interpreter Protection Insulated Plating Artifact Microwarp Drive Weapon Gatling Laser Energy Gun Gatling Laser Energy Cannon Improved Potential Cannon Launcher Mini Grenade Launcher Build | -11 -10 -10 -10 -9 -8 -7 -7 -7 -7 -6 -6 -6 -6 -6 -6 -5 -5 -5 -5 -4 -4 -4 -4 -4 -3 -3 -3 -2 -2 -2 -1 -1 -1 ------- Run | Scr Mat Min Exi Min Mat Fac Low Low Dat Pro Fac Ext Cet Arc Hub Fac Upp Upp War Pro Fac Upp Upp Zhi Pro Res Tes Res Qua Sec Acc Com Ac0 Slots Evolved 21 | 4 . 1 . 1 4 3 . 1 . . 1 . . 1 . . . . 1 . 1 . . . 1 1 . . . . . 1 . Power 2 | . . 1 . . . 1 . . . . . . . . . . . . . . . . . . . . . . . . . . . Propulsion 4 | 1 . . . . 1 . . 1 . . . . . . . . . . 1 . . . . . . . . . . . . . . Utility 11 | 2 . . . 1 1 2 . . . . 1 . . 1 . . . . . . 1 . . . . 1 . . . . . 1 . Weapon 4 | 1 . . . . 2 . . . . . . . . . . . . . . . . . . . 1 . . . . . . . . Parts Attached 234 | 9 3 1 . 2 25 11 4 1 4 7 10 3 8 6 8 13 . 2 6 1 5 6 . 2 3 3 24 6 20 13 5 13 10 Power 29 | 1 . 1 . . 3 3 . 1 . 2 1 . . 1 2 3 . . 1 . . 1 . 1 . 2 . 2 1 1 1 1 . Engine 11 | 1 . 1 . . 3 . . 1 . 2 . . . . 2 1 . . . . . . . . . . . . . . . . . Core 6 | . . . . . . 3 . . . . . . . 1 . 1 . . . . . . . . . 1 . . . . . . . Reactor 12 | . . . . . . . . . . . 1 . . . . 1 . . 1 . . 1 . 1 . 1 . 2 1 1 1 1 . Propulsion 36 | 2 . . . 1 3 2 . . . 5 3 . . 2 4 1 . . 1 . . . . . . . 2 1 7 . . . 2 Treads 9 | 2 . . . 1 3 2 . . . 1 . . . . . . . . . . . . . . . . . . . . . . . Leg 27 | . . . . . . . . . . 4 3 . . 2 4 1 . . 1 . . . . . . . 2 1 7 . . . 2 Wheel . | . . . . . . . . . . . . . . . . . . . . . . . . . . . . . . . . . . Hover . | . . . . . . . . . . . . . . . . . . . . . . . . . . . . . . . . . . Flight . | . . . . . . . . . . . . . . . . . . . . . . . . . . . . . . . . . . Utility 98 | 4 2 . . . 8 5 1 . . . 6 1 . 1 2 8 . 2 4 1 4 . . 1 2 1 8 . 8 11 3 7 8 Device 67 | . 2 . . . 2 3 . . . . 5 . . . 2 6 . 2 4 1 3 . . 1 2 1 5 . 6 9 3 5 5 Storage 1 | . . . . . . . . . . . . . . . . . . . . . . . . . . . . . . . . 1 . Processor 7 | 2 . . . . 1 . . . . . . 1 . . . . . . . . . . . . . . . . 1 . . 1 1 Hackware . | . . . . . . . . . . . . . . . . . . . . . . . . . . . . . . . . . . Protection 21 | 2 . . . . 5 2 1 . . . 1 . . 1 . 2 . . . . 1 . . . . . 3 . 1 1 . . 1 Artifact 2 | . . . . . . . . . . . . . . . . . . . . . . . . . . . . . . 1 . . 1 Weapon 71 | 2 1 . . 1 11 1 3 . 4 . . 2 8 2 . 1 . . . . 1 5 . . 1 . 14 3 4 1 1 5 . Energy Gun 61 | 2 1 . . 1 11 1 2 . 4 . . 2 6 1 . 1 . . . . 1 5 . . 1 . 10 3 3 1 1 4 . Energy Cannon 6 | . . . . . . . . . . . . . . 1 . . . . . . . . . . . . 4 . 1 . . . . Ballistic Gun . | . . . . . . . . . . . . . . . . . . . . . . . . . . . . . . . . . . Ballistic Cannon . | . . . . . . . . . . . . . . . . . . . . . . . . . . . . . . . . . . Launcher 4 | . . . . . . . 1 . . . . . 2 . . . . . . . . . . . . . . . . . . 1 . Special Weapon . | . . . . . . . . . . . . . . . . . . . . . . . . . . . . . . . . . . Impact Weapon . | . . . . . . . . . . . . . . . . . . . . . . . . . . . . . . . . . . Slashing Weapon . | . . . . . . . . . . . . . . . . . . . . . . . . . . . . . . . . . . Piercing Weapon . | . . . . . . . . . . . . . . . . . . . . . . . . . . . . . . . . . . Special Melee Weapon . | . . . . . . . . . . . . . . . . . . . . . . . . . . . . . . . . . . Unidentified Prototypes 49 | . . . . . 4 . . . . . 2 . 1 1 4 2 . 1 4 . 1 . . 2 . 1 10 1 3 8 1 3 . Parts Lost 2 | . . . . . . . . . . . . . . . 1 . . . . . . . . . . . . 1 . . . . . Power 2 | . . . . . . . . . . . . . . . 1 . . . . . . . . . . . . 1 . . . . . Propulsion . | . . . . . . . . . . . . . . . . . . . . . . . . . . . . . . . . . . Utility . | . . . . . . . . . . . . . . . . . . . . . . . . . . . . . . . . . . Weapon . | . . . . . . . . . . . . . . . . . . . . . . . . . . . . . . . . . . Highest Loss Streak 1 | . . . . . . . . . . . . . . . 1 . . . . . . . . . . . . 1 . . . . . To Critical Strikes . | . . . . . . . . . . . . . . . . . . . . . . . . . . . . . . . . . . Average Slot Usage (%) 96 | . 96 100 100 90 97 99 94 92 67 94 100 100 99 97 99 99 100 98 94 95 94 94 95 95 95 95 94 96 95 95 96 95 95 Engine 6 | . 12 13 22 20 14 8 5 5 5 9 11 10 10 7 8 8 10 9 6 4 4 1 . . . . . . . . . . . Core 1 | . . . . . . 4 11 11 11 6 . . . 2 . . . . . . . . . . . . . . . . . . . Reactor 5 | . . . . . . . . . . . 3 5 5 5 5 5 5 4 6 9 8 11 13 13 12 12 12 12 11 12 12 11 11 Treads 6 | . 25 24 22 20 21 18 13 11 11 7 . . . . . . . . . . . . . . . . . . . . . . . Leg 13 | . . . . . . . . . . 9 21 21 21 20 19 20 20 19 20 22 21 21 21 21 20 20 19 20 19 20 20 19 19 Device 26 | . 8 11 11 10 12 22 23 22 22 22 24 26 26 25 25 28 30 29 27 27 30 34 34 34 33 34 36 36 35 35 36 34 32 Processor 4 | . . . . . 3 5 5 5 5 5 5 5 5 5 5 5 5 4 4 4 4 4 4 4 4 4 4 4 4 4 4 4 4 Protection 9 | . 25 24 22 20 15 12 8 11 11 11 10 10 10 12 15 11 10 9 9 9 5 4 4 4 4 4 3 4 4 4 4 3 3 Energy Gun 20 | . 25 24 22 20 28 25 22 22 1 22 21 21 20 20 20 20 20 19 18 18 17 16 17 17 17 20 18 20 19 20 20 18 19 Naked Turns . | . . . . . . . . . . . . . . . . . . . . . . . . . . . . . . . . . . Heaviest Build 159 | 9 12 15 15 17 40 52 52 59 59 65 78 79 79 91 94 93 84 84 116 116 117 123 123 125 131 133 149 135 150 151 151 159 144 Greatest Support 176 | 40 40 40 40 43 63 79 79 61 61 81 93 93 93 114 130 130 130 130 160 160 160 160 160 160 160 160 160 157 166 176 176 176 176 Greatest Overweight (x) 2 | . . . . . 1 . 1 . . 2 . . . . . . . . . . . . . . . . . . 1 . . . . Average Overweight (x) . | . . . . . . . . . . . . . . . . . . . . . . . . . . . . . . . . . . Largest Inventory Capacity 7 | 3 3 4 4 4 4 4 4 4 4 4 5 5 5 5 5 5 5 5 5 5 5 5 5 5 5 5 6 6 6 7 7 7 7 Average Capacity 5 | 3 3 3 4 4 4 4 4 4 4 4 4 5 5 5 5 5 5 5 5 5 5 5 5 5 5 5 5 6 6 6 7 7 7 Most Carried 7 | . 3 2 2 4 4 4 4 4 4 4 5 5 5 5 5 5 5 5 5 5 5 5 5 5 5 5 6 6 6 7 7 7 7 Average Carried 4 | . . 2 2 2 1 3 3 3 4 3 3 4 4 5 4 4 5 5 4 4 4 4 5 4 5 4 5 6 5 6 6 6 6 Final Capacity 7 | 3 3 4 4 4 4 4 4 4 4 4 5 5 5 5 5 5 5 5 5 5 5 5 5 5 5 5 6 6 6 7 7 7 7 Final Carried 7 | . 2 2 2 3 4 3 3 4 4 4 4 5 5 5 5 5 5 5 5 5 4 5 5 5 5 4 6 6 6 7 7 6 5 Class Distribution -------------------- 42% | Scavenger-Tank 28% | Hacker-Skirmisher 16% | Generator-Tank 7% | Scavenger-Skirmisher Dominant Class ---------------- Hacker-Skirmisher | -10/Materials Hacker-Skirmisher | -10/Mines Hacker-Skirmisher | -10/Exiles Hacker-Skirmisher | -9/Mines Hacker-Skirmisher | -8/Materials Hacker-Skirmisher | -7/Factory Hacker-Skirmisher | -7/Lower Caves Hacker-Skirmisher | -7/Lower Caves Hacker-Mutant | -7/Data Miner Scavenger-Skirmisher | -6/Proximity Caves Scavenger-Tank | -6/Factory Scavenger-Tank | -6/Extension Scavenger-Tank | -6/Cetus Scavenger-Tank | -6/Archives Scavenger-Tank | -6/Hub_04(d) Scavenger-Tank | -5/Factory Scavenger-Tank | -5/Upper Caves Scavenger-Tank | -5/Upper Caves Scavenger-Tank | -5/Warlord Scavenger-Tank | -4/Proximity Caves Scavenger-Tank | -4/Factory Scavenger-Tank | -4/Upper Caves Scavenger-Tank | -4/Upper Caves Scavenger-Tank | -4/Zhirov Scavenger-Tank | -3/Proximity Caves Scavenger-Tank | -3/Research Scavenger-Tank | -3/Testing Generator-Tank | -2/Research Generator-Tank | -2/Quarantine Generator-Tank | -2/Section 7 Generator-Tank | -1/Access Generator-Tank | -1/Command Scavenger-Tank | -1/Access_0 Resources | -11 -10 -10 -10 -9 -8 -7 -7 -7 -7 -6 -6 -6 -6 -6 -6 -5 -5 -5 -5 -4 -4 -4 -4 -4 -3 -3 -3 -2 -2 -2 -1 -1 -1 ----------- Run | Scr Mat Min Exi Min Mat Fac Low Low Dat Pro Fac Ext Cet Arc Hub Fac Upp Upp War Pro Fac Upp Upp Zhi Pro Res Tes Res Qua Sec Acc Com Ac0 Matter Collected 2520 | 272 48 10 . 18 250 86 47 62 . 120 68 50 128 . 170 137 . 16 88 10 50 36 24 30 30 30 240 20 260 120 25 60 15 Remotely . | . . . . . . . . . . . . . . . . . . . . . . . . . . . . . . . . . . Salvage Created 22991 | . 692 30 . . 1229 723 . 251 . 674 810 619 560 91 2178 830 553 243 109 381 475 345 845 349 454 373 1487 120 1408 2353 1042 2324 1443 Parts 923 | . 37 3 . . 56 38 3 8 . 31 30 31 20 1 75 72 15 6 . 7 33 15 12 9 11 6 58 11 44 77 40 68 106 Haulers Intercepted 10 | . 1 . . . 3 1 . . . . . . . . 2 . . . . . . . . . . 1 . . . 2 . . . Recyclers Shooed 5 | . 3 . . . 1 1 . . . . . . . . . . . . . . . . . . . . . . . . . . . Parts Field Recycled . | . . . . . . . . . . . . . . . . . . . . . . . . . . . . . . . . . . Retrieved Matter . | . . . . . . . . . . . . . . . . . . . . . . . . . . . . . . . . . . Parts Self-Destructed . | . . . . . . . . . . . . . . . . . . . . . . . . . . . . . . . . . . Prevented . | . . . . . . . . . . . . . . . . . . . . . . . . . . . . . . . . . . Kills | -11 -10 -10 -10 -9 -8 -7 -7 -7 -7 -6 -6 -6 -6 -6 -6 -5 -5 -5 -5 -4 -4 -4 -4 -4 -3 -3 -3 -2 -2 -2 -1 -1 -1 ------- Run | Scr Mat Min Exi Min Mat Fac Low Low Dat Pro Fac Ext Cet Arc Hub Fac Upp Upp War Pro Fac Upp Upp Zhi Pro Res Tes Res Qua Sec Acc Com Ac0 Combat Hostiles Destroyed 364 | . 7 5 . . 19 14 1 5 . 20 15 15 16 3 28 30 12 5 1 7 11 8 13 . 8 5 31 2 20 26 11 5 21 Guns 326 | . 7 5 . . 16 14 1 4 . 20 14 14 14 2 24 29 12 4 . 7 9 8 10 . 7 4 26 1 16 22 11 4 21 AOE 2 | . . . . . . . . . . . . . . . . . . . . . . . . . . . 1 . . . . 1 . Classes Destroyed 25 | . 5 3 . . 6 2 1 1 . . . . . . . . 1 . . . . . . . . . 4 . 2 . . . . Worker 19 | . . . . . 1 . . . . . 4 . . . 7 1 . . . . . . . . . . 3 . 1 . . 2 . Builder 10 | . . . . . 2 . . . . . . . . . . 3 . . . . 1 . . . . . 3 . . . 1 . . Tunneler 4 | . 1 . . 1 2 . . . . . . . . . . . . . . . . . . . . . . . . . . . . Hauler 10 | . 1 . . . 3 1 . . . . . . . . 2 . . . . . . . . . . 1 . . . 2 . . . Recycler 9 | . 4 . . . 2 . . . . . 1 . . . 1 . . . . . . . . . . . . . . 1 . . . Operator 9 | . . . . . 1 . . . . . 2 1 . . 2 1 . . . . . . . . . . . . 1 . . 1 . Watcher 33 | . 2 . . . 3 2 . . . . . . 1 . 4 3 . . . . 3 . . . . 1 3 1 2 5 1 2 . Swarmer 52 | . . 2 . . 2 . . . . 5 4 . 2 . . 15 4 . . 4 3 2 1 . . 4 . . . 4 . . . Saboteur 1 | . . . . . . . . . . . . . . . . . . . . . . . . . . . . . 1 . . . . Grunt 126 | . 7 . . . 8 7 . 3 . 12 8 10 7 . 8 6 2 3 . 2 . 4 . . 3 . 19 . 4 7 6 . . Brawler 9 | . . . . . 1 . . 1 . 2 . . . . . . . . 1 . . . 4 . . . . . . . . . . Duelist 11 | . . . . . 1 . . . . . . . . . . 1 3 . . . . . 2 . . . . . 3 1 . . . Protector 1 | . . . . . . . . . . . . . . . . . . . . . . . . . . . 1 . . . . . . Researcher 2 | . . . . . . . . . . . . . . . . . . . . . . . . . . . 1 . . 1 . . . Sentry 47 | . . . . . 7 3 . . . 1 2 2 . 3 9 2 2 . . 1 2 1 2 . 1 1 3 1 . 3 . 1 . Demolisher 1 | . . 1 . . . . . . . . . . . . . . . . . . . . . . . . . . . . . . . Hunter 20 | . . . . . . 1 . . . . . 1 . . 1 . . . . . . . 4 . 2 . . . 5 3 3 . . Programmer 36 | . . . . . . 3 . . . . . . . . 1 6 . . . . 6 . . . 2 . 5 1 5 3 2 2 . Behemoth 9 | . . . . . . . . 1 . . 1 2 . . 1 . . 1 . . . 1 . . . . . . . 2 . . . Cetus Guard 7 | . . . . . . . . . . . . . 7 . . . . . . . . . . . . . . . . . . . . S7 Guard 1 | . . . . . . . . . . . . . . . . . . . . . . . . . . . . . . 1 . . . Enhanced Grunt 12 | . . . . . . . . . . . . . . . 2 . . . . . . . . . . . . . . . . . 10 Enhanced Sentry 1 | . . . . . . . . . . . . . . . . . . . . . . . . . . . . . . . . . 1 Enhanced Hunter 6 | . . . . . . . . . . . . . . . . . . . . . . . . . . . . . . . . . 6 Lightning 8 | . . . . . . . . . . . . . . . 8 . . . . . . . . . . . . . . . . . . Combat Programmer 1 | . . . . . . . . . . . . . . . . . . . . . . . . . . . . . . . . 1 . Striker 2 | . . . . . . . . . . . . . . . . . . . . . . . . . . . 2 . . . . . . Alpha 7 4 | . . . . . . . . . . . . . . . . . . . . . . . . . . . 1 . 1 2 . . . Fortress 1 | . . . . . . . . . . . . . . . . . . . . . . . . . . . . . 1 . . . . Thief 1 | . . . . . . . 1 . . . . . . . . . . . . . . . . . . . . . . . . . . Assembled 2 | . . 2 . . . . . . . . . . . . . . . . . . . . . . . . . . . . . . . Mutant 2 | . . . . . . . . . . . . . . . . . 1 1 . . . . . . . . . . . . . . . Commander 1 | . . . . . . . . . . . . . . . . . . . . . . . . . . . . . . . . 1 . Best Kill Streak 12 | . 3 2 . 1 4 4 1 2 . 6 8 3 4 3 8 12 7 3 1 4 3 7 7 . 3 4 11 2 5 12 5 4 3 Combat Bots Only 10 | . 2 2 . . 3 4 1 2 . 6 3 3 4 3 5 6 7 3 1 4 3 7 7 . 3 4 10 2 5 8 4 2 3 Max Kills in Single Turn 5 | . 1 2 . 1 2 2 1 1 . 2 2 2 2 2 4 2 2 1 1 2 1 2 1 . 1 2 5 1 2 2 2 3 1 Gunslinging 1 | . . 1 . . 1 1 . . . 1 . 1 . 1 . 1 1 . . 1 . 1 . . . 1 1 . 1 1 . . . Exploded 1 | . . . . . . . . . . . . . . . . . . . . . . . . . . . 1 . . . . 1 . Melee . | . . . . . . . . . . . . . . . . . . . . . . . . . . . . . . . . . . Uniques/NPCs Destroyed 6 | . . . . . . . . . . . . . 1 . . . . . . . . . . . . . . . . . . 1 4 A7 (-6/Cetus) MAIN.C Shell (-1/Command) A8 (-1/Access_0) A6 (-1/Access_0) A5 (-1/Access_0) Architect (-1/Access_0) Combat | -11 -10 -10 -10 -9 -8 -7 -7 -7 -7 -6 -6 -6 -6 -6 -6 -5 -5 -5 -5 -4 -4 -4 -4 -4 -3 -3 -3 -2 -2 -2 -1 -1 -1 -------- Run | Scr Mat Min Exi Min Mat Fac Low Low Dat Pro Fac Ext Cet Arc Hub Fac Upp Upp War Pro Fac Upp Upp Zhi Pro Res Tes Res Qua Sec Acc Com Ac0 Damage Taken 7457 | . 99 152 . . 354 155 7 96 . 242 117 146 232 47 1031 237 133 51 42 22 36 59 237 . 50 37 227 10 84 271 17 428 2838 Core 5162 | . 70 109 . . 230 89 5 65 . 160 78 74 149 37 652 147 86 36 21 11 29 39 180 . 37 27 164 7 57 175 10 278 2140 Absorbed by Shields 5378 | . . . . . . 102 . 32 . 112 183 130 243 42 278 122 53 20 39 19 34 50 226 . 42 30 197 8 73 245 16 413 2669 Redirected to Core 4156 | . 46 76 . . 194 78 5 65 . 144 57 72 136 25 485 116 86 36 21 11 19 39 157 . 30 22 135 2 57 149 10 260 1623 Redirected to Shielding 45 | . 13 15 . . 17 . . . . . . . . . . . . . . . . . . . . . . . . . . . . Regen/Repaired (Parts) 100 | . . . . . . . . . . . . . . . . . . . . . . . . . . . . . . 100 . . . Core Remaining (%) 92 | 100 . . . 100 100 . . . . 100 . . . . 34 . . . . 100 . . . . 100 . 100 . . 100 . . . Volleys Fired 911 | . 42 13 . 1 55 24 4 8 . 26 26 28 29 4 62 40 16 9 4 7 21 12 20 10 12 9 44 6 44 64 23 65 183 Largest 5 | . 2 2 . 2 4 4 4 4 . 4 4 4 4 4 4 4 4 4 4 4 4 4 4 1 4 5 5 5 5 5 5 5 5 Hottest 476 | . 80 105 . 105 276 287 298 298 . 298 298 315 315 315 315 315 315 315 315 315 328 334 334 94 334 428 476 417 424 406 406 383 355 Shots Fired 3789 | . 84 26 . 2 214 96 17 32 . 104 104 109 106 16 249 147 64 36 16 28 81 48 80 10 48 45 206 30 210 320 107 297 857 Gun 3775 | . 84 26 . 2 214 96 17 32 . 104 104 109 102 16 249 147 64 36 16 28 81 48 80 10 48 45 204 30 203 320 107 296 857 Cannon 9 | . . . . . . . . . . . . . . . . . . . . . . . . . . . 2 . 7 . . . . Launcher 5 | . . . . . . . . . . . . . 4 . . . . . . . . . . . . . . . . . . 1 . Special . | . . . . . . . . . . . . . . . . . . . . . . . . . . . . . . . . . . Kinetic . | . . . . . . . . . . . . . . . . . . . . . . . . . . . . . . . . . . Thermal 3771 | . 84 26 . 2 214 96 17 32 . 104 104 109 102 16 249 147 64 36 16 28 81 48 80 10 48 45 193 29 210 320 107 297 857 Explosive 4 | . . . . . . . . . . . . . 4 . . . . . . . . . . . . . . . . . . . . Electromagnetic 14 | . . . . . . . . . . . . . . . . . . . . . . . . . . . 13 1 . . . . . Robot Hit Streak 135 | . 21 26 . 9 41 36 25 82 . 33 27 40 42 13 79 33 54 48 24 20 41 55 35 13 25 42 66 9 119 135 33 60 120 Robot Miss Streak 6 | . 3 4 . . 2 1 . . . 2 2 1 4 1 3 6 3 1 1 2 3 1 4 . 1 2 3 1 2 1 1 2 3 Penetration Max . | . . . . . . . . . . . . . . . . . . . . . . . . . . . . . . . . . . Secondary Targets 61 | . . 1 . . 3 2 . . . 6 . 1 1 1 3 5 1 . . 2 . 1 2 . 1 1 5 . 5 4 3 1 12 Max Gunslinging Chain 2 | . . 1 . . 1 1 . . . 2 . 1 1 1 1 1 1 . . 1 . 1 1 . 1 1 1 . 1 1 1 1 1 Shots Hit Robots 3063 | . 65 19 . 2 162 61 13 29 . 87 75 86 100 15 219 130 57 27 16 27 75 36 72 10 48 32 166 16 155 225 71 207 760 Core Hits 1392 | . 32 7 . 1 53 33 4 15 . 49 52 51 79 9 151 82 33 15 10 17 40 27 45 8 29 19 93 6 48 70 26 69 219 Critical Kills 1 | . . . . . . . . . . . . . . . . . . . . . . . . . . . . . 1 . . . . Critical Parts Destroyed . | . . . . . . . . . . . . . . . . . . . . . . . . . . . . . . . . . . Critical Strikes 42 | . . 1 . . 9 1 . . . 1 4 . . . 6 . . . . . 1 . . . . . 2 2 9 6 . . . Burn 41 | . . 1 . . 9 1 . . . 1 4 . . . 6 . . . . . 1 . . . . . 2 2 8 6 . . . Meltdown 1 | . . . . . . . . . . . . . . . . . . . . . . . . . . . . . 1 . . . . Melee Attacks . | . . . . . . . . . . . . . . . . . . . . . . . . . . . . . . . . . . Impact . | . . . . . . . . . . . . . . . . . . . . . . . . . . . . . . . . . . Slashing . | . . . . . . . . . . . . . . . . . . . . . . . . . . . . . . . . . . Piercing . | . . . . . . . . . . . . . . . . . . . . . . . . . . . . . . . . . . Sneak Attacks . | . . . . . . . . . . . . . . . . . . . . . . . . . . . . . . . . . . Combat Hostiles . | . . . . . . . . . . . . . . . . . . . . . . . . . . . . . . . . . . Follow-up Attacks . | . . . . . . . . . . . . . . . . . . . . . . . . . . . . . . . . . . Damage Inflicted 125364 | . 722 253 . 39 2820 1653 321 735 . 2289 2462 2769 3126 574 7534 3530 1596 883 663 605 2314 1239 2495 435 1500 791 7130 648 6308 9304 3286 21428 35912 Guns 110647 | . 722 253 . 27 2802 1602 321 735 . 2289 2287 2757 2687 574 7033 3529 1596 883 663 605 2314 1239 2495 435 1500 791 5307 648 5729 9304 3286 10322 35912 Cannons 861 | . . . . . . . . . . . . . . . . . . . . . . . . . . . 468 . 393 . . . . Explosions 13523 | . . . . . . . . . . . 67 . 439 . 442 . . . . . . . . . . . 1355 . 186 . . 11034 . Melee . | . . . . . . . . . . . . . . . . . . . . . . . . . . . . . . . . . . Ramming 333 | . . . . 12 18 51 . . . . 108 12 . . 59 1 . . . . . . . . . . . . . . . 72 . Kinetic . | . . . . . . . . . . . . . . . . . . . . . . . . . . . . . . . . . . Thermal 122885 | . 722 253 . 27 2802 1602 321 735 . 2289 2287 2757 2687 574 7033 3529 1596 883 663 605 2314 1239 2495 435 1500 791 5932 648 6308 9304 3286 21356 35912 Explosive 1499 | . . . . . . . . . . . 67 . 439 . . . . . . . . . . . . . 993 . . . . . . Electromagnetic 647 | . . . . . . . . . . . . . . . 442 . . . . . . . . . . . 205 . . . . . . Impact . | . . . . . . . . . . . . . . . . . . . . . . . . . . . . . . . . . . Slashing . | . . . . . . . . . . . . . . . . . . . . . . . . . . . . . . . . . . Piercing . | . . . . . . . . . . . . . . . . . . . . . . . . . . . . . . . . . . Highest Corruption 9 | . . . . . . 1 1 1 1 1 . 1 1 1 9 1 1 1 1 . . . . . . . . . . . . . . Average Corruption 1 | . . . . . . 1 1 1 1 1 . 1 1 1 2 1 1 1 1 . . . . . . . . . . . . . . Corruption Purged . | . . . . . . . . . . . . . . . . . . . . . . . . . . . . . . . . . . Corruption Blocked 26 | . . . . . . . . . . . . . . . . . . . . . . . . . . . 15 11 . . . . . Effects 62 | . . . . . . 2 14 5 2 5 . 2 4 2 12 4 6 4 . . . . . . . . . . . . . . . Message Errors 19 | . . . . . . . 8 . . 3 . . 2 . 2 1 3 . . . . . . . . . . . . . . . . Matter Fused 15 | . . . . . . . 2 3 1 1 . . . 2 3 1 . 2 . . . . . . . . . . . . . . . Heat Flow Errors 10 | . . . . . . 1 1 1 . . . 1 2 . 3 . . 1 . . . . . . . . . . . . . . . Energy Discharges 5 | . . . . . . . . 1 1 . . . . . 1 1 . 1 . . . . . . . . . . . . . . . Data Loss (minor) 5 | . . . . . . 1 1 . . 1 . 1 . . 1 . . . . . . . . . . . . . . . . . . Data Loss (major) 2 | . . . . . . . 1 . . . . . . . 1 . . . . . . . . . . . . . . . . . . Misfires 3 | . . . . . . . 1 . . . . . . . 1 . 1 . . . . . . . . . . . . . . . . Alerts 1 | . . . . . . . . . . . . . . . . . 1 . . . . . . . . . . . . . . . . Weapon Failures 2 | . . . . . . . . . . . . . . . . 1 1 . . . . . . . . . . . . . . . . Overload Shots . | . . . . . . . . . . . . . . . . . . . . . . . . . . . . . . . . . . Overflow Damage 1023 | . . . . . . . . . . . 13 . . . . . . . . . . . . . . . 334 . . . . 676 . Projectiles 185 | . . . . . . . . . . . . . . . . . . . . . . . . . . . 185 . . . . . . Explosions 828 | . . . . . . . . . . . 3 . . . . . . . . . . . . . . . 149 . . . . 676 . Melee 10 | . . . . . . . . . . . 10 . . . . . . . . . . . . . . . . . . . . . . Knockbacks . | . . . . . . . . . . . . . . . . . . . . . . . . . . . . . . . . . . Impact . | . . . . . . . . . . . . . . . . . . . . . . . . . . . . . . . . . . Kinetic . | . . . . . . . . . . . . . . . . . . . . . . . . . . . . . . . . . . Secondary . | . . . . . . . . . . . . . . . . . . . . . . . . . . . . . . . . . . Self-Inflicted Damage 565 | . . . . . . . . . . . . . . . 177 . . . . . . . . . . . 48 . . . . 340 . Shots 6 | . . . . . . . . . . . . . . . 4 . . . . . . . . . . . 1 . . . . 1 . Rammed 12 | . . . . 2 4 6 . . . . . . . . . . . . . . . . . . . . . . . . . . . Targets Rammed 33 | . . . . 3 6 6 . . . . 7 1 . . 7 1 . . . . . . . . . . . . . . . 2 . Kicked 18 | . . . . . . . . . . . 7 1 . . 7 1 . . . . . . . . . . . . . . . 2 . Crushed 3 | . . . . 1 2 . . . . . . . . . . . . . . . . . . . . . . . . . . . . Highest Temperature 419 | . 135 135 . . 249 200 245 280 . 419 . 116 99 . 200 . . 155 . . . . . . . 18 396 138 208 208 61 61 . Average Temperature 70 | . 41 53 . . 81 47 118 102 . 129 . 60 62 . 73 . . 97 . . . . . . . 8 101 74 69 77 53 45 . Received Heat Transfer 1211 | . 93 . . . 234 55 . 26 . 115 52 97 43 14 14 36 48 30 13 14 12 36 5 . 39 5 92 5 8 58 4 63 . Effects 1 | . . . . . . . . . . 1 . . . . . . . . . . . . . . . . . . . . . . . Shutdowns 1 | . . . . . . . . . . 1 . . . . . . . . . . . . . . . . . . . . . . . Siege Activations . | . . . . . . . . . . . . . . . . . . . . . . . . . . . . . . . . . . Robots Corrupted 1 | . . . . . . . . . . . . . . . 1 . . . . . . . . . . . . . . . . . . Combat Hostiles . | . . . . . . . . . . . . . . . . . . . . . . . . . . . . . . . . . . Parts Fried 8 | . . . . . . . . . . . 2 . . . 6 . . . . . . . . . . . . . . . . . . Impact Corruptions 1 | . . . . . . . . . . . 1 . . . . . . . . . . . . . . . . . . . . . . Robots Melted 36 | . . . . . 3 . . 1 . . 1 1 2 1 4 1 . 1 1 . 2 . 3 . 1 1 4 1 4 4 . . . Combat Hostiles 36 | . . . . . 3 . . 1 . . 1 1 2 1 4 1 . 1 1 . 2 . 3 . 1 1 4 1 4 4 . . . Parts Melted 322 | . 2 . . . 27 10 1 4 . 3 15 11 12 1 33 12 7 3 1 1 12 2 11 . 9 7 29 4 32 42 6 12 13 Heat Transferred 107485 | . 1675 669 . 62 6750 2663 533 1255 . 4138 4051 4217 4480 861 9920 5229 2433 1285 618 936 3217 1784 3632 286 2097 1186 7011 768 6621 9068 2569 3702 13769 Parts Sabotaged . | . . . . . . . . . . . . . . . . . . . . . . . . . . . . . . . . . . Parts Stolen 1 | . . . . . . . 1 . . . . . . . . . . . . . . . . . . . . . . . . . . Parts Stripped . | . . . . . . . . . . . . . . . . . . . . . . . . . . . . . . . . . . Power Chain Reactions 2 | . . . . . . . . . . . . . . . 2 . . . . . . . . . . . . . . . . . . Missiles Intercepted . | . . . . . . . . . . . . . . . . . . . . . . . . . . . . . . . . . . Alert | -11 -10 -10 -10 -9 -8 -7 -7 -7 -7 -6 -6 -6 -6 -6 -6 -5 -5 -5 -5 -4 -4 -4 -4 -4 -3 -3 -3 -2 -2 -2 -1 -1 -1 ------- Run | Scr Mat Min Exi Min Mat Fac Low Low Dat Pro Fac Ext Cet Arc Hub Fac Upp Upp War Pro Fac Upp Upp Zhi Pro Res Tes Res Qua Sec Acc Com Ac0 Peak Influence 2383 | . 117 95 . 5 236 339 . . . . 362 601 499 272 1162 553 . . . . 155 . . . . 105 1201 739 690 764 850 2383 . Initial 507 | . . . . . 1 38 . . . . . 78 53 134 64 328 . . . . 72 . . . . . 24 507 312 . 114 269 . Average 214 | . 37 41 . . 57 75 . . . . 163 309 327 257 275 346 . . . . 51 . . . . 23 278 593 194 332 369 952 . Maximum Alert Level 5 | . . . . . 1 1 . . . . 1 2 2 1 4 2 . . . . . . . . . . 4 3 2 3 3 5 . Low Security (%) 66 | 100 100 100 . 100 97 92 . . . . 68 32 16 10 54 11 . . . . 100 . . . . 100 55 . 71 38 22 74 . Level 1 16 | . . . . . 2 7 . . . . 31 35 63 90 24 48 . . . . . . . . . . 18 . 12 13 36 8 . Level 2 13 | . . . . . . . . . . . . 32 19 . 5 39 . . . . . . . . . . 19 77 16 38 34 8 . Level 3 2 | . . . . . . . . . . . . . . . 14 . . . . . . . . . . . 2 22 . 10 6 . . Level 4 . | . . . . . . . . . . . . . . . . . . . . . . . . . . . 4 . . . . . . Level 5 . | . . . . . . . . . . . . . . . . . . . . . . . . . . . . . . . . 7 . High Security . | . . . . . . . . . . . . . . . . . . . . . . . . . . . . . . . . . . Max Security . | . . . . . . . . . . . . . . . . . . . . . . . . . . . . . . . . . . Squads Dispatched 61 | . . . . . 1 7 . . . 1 5 4 1 . 7 5 . . . . 3 . . . . 1 12 . 7 2 3 2 . Investigation 11 | . . . . . . 2 . . . . 2 2 1 . 1 1 . . . . . . . . . 1 . . 1 . . . . Extermination 15 | . . . . . . 2 . . . . . . . . 1 2 . . . . 3 . . . . . 2 . 3 1 1 . . Reinforcement 25 | . . . . . 1 3 . . . . 3 1 . . 3 2 . . . . . . . . . . 5 . 2 1 2 2 . Assault 6 | . . . . . . . . . . 1 . 1 . . 2 . . . . . . . . . . . 1 . 1 . . . . Garrison 4 | . . . . . . . . . . . . . . . . . . . . . . . . . . . 4 . . . . . . Intercept . | . . . . . . . . . . . . . . . . . . . . . . . . . . . . . . . . . . Searches Triggered . | . . . . . . . . . . . . . . . . . . . . . . . . . . . . . . . . . . Data Miner Redirects 8 | . . . . . . . . . . . 1 2 . . 2 1 . . . . . . . . . . . . 2 . . . . Construction Impeded 4 | . . . . . . 1 . . . . . . . . 1 . . . . . . . . . . . 1 . . . 1 . . Haulers Reinforced 6 | . . . . . . . . . . . 1 . . . 1 . . . . . . . . . . . 2 . . 1 1 . . Active Scanning Responses . | . . . . . . . . . . . . . . . . . . . . . . . . . . . . . . . . . . Cargo Convoy Interrupts . | . . . . . . . . . . . . . . . . . . . . . . . . . . . . . . . . . . Stealth | -11 -10 -10 -10 -9 -8 -7 -7 -7 -7 -6 -6 -6 -6 -6 -6 -5 -5 -5 -5 -4 -4 -4 -4 -4 -3 -3 -3 -2 -2 -2 -1 -1 -1 --------- Run | Scr Mat Min Exi Min Mat Fac Low Low Dat Pro Fac Ext Cet Arc Hub Fac Upp Upp War Pro Fac Upp Upp Zhi Pro Res Tes Res Qua Sec Acc Com Ac0 Distress Signals 31 | . . 1 . . 4 3 . . . . 2 4 2 . 2 3 . . 1 . . . . . . . 1 3 . 2 2 1 . Communications Jammed . | . . . . . . . . . . . . . . . . . . . . . . . . . . . . . . . . . . Distress Signals . | . . . . . . . . . . . . . . . . . . . . . . . . . . . . . . . . . . Times Spotted 587 | . 10 11 . . 30 17 2 5 . 31 21 27 27 6 49 36 12 6 20 7 17 8 14 . 8 6 44 9 23 33 26 12 70 Peak Tracking Total 14 | . 3 10 . . 5 4 2 2 . 7 6 7 6 2 8 6 7 4 14 4 3 7 7 . 3 3 11 8 6 6 5 5 4 Tactical Retreats 9 | . . . . . . . . . . 2 1 . . . . . . . 2 . . . . . . . . 3 . . . 1 . Traps | -11 -10 -10 -10 -9 -8 -7 -7 -7 -7 -6 -6 -6 -6 -6 -6 -5 -5 -5 -5 -4 -4 -4 -4 -4 -3 -3 -3 -2 -2 -2 -1 -1 -1 ------- Run | Scr Mat Min Exi Min Mat Fac Low Low Dat Pro Fac Ext Cet Arc Hub Fac Upp Upp War Pro Fac Upp Upp Zhi Pro Res Tes Res Qua Sec Acc Com Ac0 Traps Triggered 19 | . . . . . 3 . . . . . 1 4 . . 2 3 . . . . . . . . . 1 1 . 3 . . 1 . Indirectly 1 | . . . . . . . . . . . . . . . 1 . . . . . . . . . . . . . . . . . . Trap Hack Attempts . | . . . . . . . . . . . . . . . . . . . . . . . . . . . . . . . . . . Triggered . | . . . . . . . . . . . . . . . . . . . . . . . . . . . . . . . . . . Disarmed 10 | . . . . . . . . . . . . . . . . . . . . . 10 . . . . . . . . . . . . Reprogrammed 11 | . 6 . . . . . . . . . . . . . . . . . . . . . . . . . 5 . . . . . . Reused . | . . . . . . . . . . . . . . . . . . . . . . . . . . . . . . . . . . Traps Extracted . | . . . . . . . . . . . . . . . . . . . . . . . . . . . . . . . . . . Installed . | . . . . . . . . . . . . . . . . . . . . . . . . . . . . . . . . . . Triggered 22 | . . . . . . 1 . . . 3 . . . . . . . . 17 1 . . . . . . . . . . . . . Machines | -11 -10 -10 -10 -9 -8 -7 -7 -7 -7 -6 -6 -6 -6 -6 -6 -5 -5 -5 -5 -4 -4 -4 -4 -4 -3 -3 -3 -2 -2 -2 -1 -1 -1 ---------- Run | Scr Mat Min Exi Min Mat Fac Low Low Dat Pro Fac Ext Cet Arc Hub Fac Upp Upp War Pro Fac Upp Upp Zhi Pro Res Tes Res Qua Sec Acc Com Ac0 Machines Disabled 92 | . . . . . 3 1 . . . . 1 4 1 2 32 . 1 1 . . . 1 . . . . 15 . 6 10 3 7 4 Max in Single Turn 10 | . . . . . 1 . . . . . 1 1 1 1 10 . 1 1 . . . 1 . . . . 3 . 1 2 1 2 1 Garrison Access 6 | . . . . . 1 . . . . . . . . . 1 . . . . . 1 . . . . . 1 . 1 1 . . . Phase Generator 1 | . . . . . . . . . . . . . . . . . . . . . . . . . . . . . . . . 1 . Network Hub 3 | . . . . . . . . . . . . . . . 3 . . . . . . . . . . . . . . . . . . Energy Cycler 1 | . . . . . . . . . . . . 1 . . . . . . . . . . . . . . . . . . . . . Machines Sabotaged . | . . . . . . . . . . . . . . . . . . . . . . . . . . . . . . . . . . Garrisons Compromised . | . . . . . . . . . . . . . . . . . . . . . . . . . . . . . . . . . . Overloaded Fab Kills . | . . . . . . . . . . . . . . . . . . . . . . . . . . . . . . . . . . Hacking | -11 -10 -10 -10 -9 -8 -7 -7 -7 -7 -6 -6 -6 -6 -6 -6 -5 -5 -5 -5 -4 -4 -4 -4 -4 -3 -3 -3 -2 -2 -2 -1 -1 -1 --------- Run | Scr Mat Min Exi Min Mat Fac Low Low Dat Pro Fac Ext Cet Arc Hub Fac Upp Upp War Pro Fac Upp Upp Zhi Pro Res Tes Res Qua Sec Acc Com Ac0 Machines Accessed 87 | . 3 . . . 9 5 2 . 4 . 5 1 1 . 12 3 . . 2 . 6 2 . 4 . 1 5 1 10 8 1 2 . Terminals 64 | . 3 . . . 8 4 . . . . 4 1 1 . 11 3 . . . . 4 1 . . . 1 4 1 9 7 . 2 . Fabricators 4 | . . . . . . 1 . . . . 1 . . . . . . . . . 1 . . . . . 1 . . . . . . Repair Stations . | . . . . . . . . . . . . . . . . . . . . . . . . . . . . . . . . . . Recycling Units . | . . . . . . . . . . . . . . . . . . . . . . . . . . . . . . . . . . Scanalyzers . | . . . . . . . . . . . . . . . . . . . . . . . . . . . . . . . . . . Garrison Access 6 | . . . . . 1 . . . . . . . . . 1 . . . . . 1 . . . . . . . 1 1 1 . . Total Hacks 302 | . 9 . . . 23 11 8 . 30 . 10 2 2 . 23 15 . . 2 . 26 11 . 17 . 3 33 5 26 38 3 5 . Successful 167 | . 6 . . . 8 7 8 . 30 . 6 1 . . 10 6 . . 2 . 12 11 . 17 . 3 14 2 8 15 . 1 . Failed 135 | . 3 . . . 15 4 . . . . 4 1 2 . 13 9 . . . . 14 . . . . . 19 3 18 23 3 4 . Catastrophic 33 | . . . . . 2 . . . . . . . 1 . 6 2 . . . . 3 . . . . . 1 2 8 5 . 3 . Database Lockouts . | . . . . . . . . . . . . . . . . . . . . . . . . . . . . . . . . . . Manual 130 | . 4 . . . 18 7 . . . . 6 2 1 . 15 10 . . 1 . 13 . . . . 1 20 1 4 25 . 2 . Terminals 230 | . 9 . . . 22 10 . . . . 9 2 2 . 22 15 . . . . 24 10 . . . 3 31 5 25 36 . 5 . Fabricators 5 | . . . . . . 1 . . . . 1 . . . . . . . . . 1 . . . . . 2 . . . . . . Repair Stations . | . . . . . . . . . . . . . . . . . . . . . . . . . . . . . . . . . . Recycling Units . | . . . . . . . . . . . . . . . . . . . . . . . . . . . . . . . . . . Scanalyzers . | . . . . . . . . . . . . . . . . . . . . . . . . . . . . . . . . . . Garrison Access 9 | . . . . . 1 . . . . . . . . . 1 . . . . . 1 . . . . . . . 1 2 3 . . Terminal Hacks 146 | . 6 . . . 7 4 8 . 30 . 5 . . . 9 6 . . 2 . 10 11 . 17 . 3 8 2 7 10 . 1 . Record 34 | . . . . . . . 7 . 11 . . . . . . . . . . . . 10 . 5 . . . . 1 . . . . Part Schematic 16 | . . . . . . 2 . . 10 . . . . . . . . . . . . . . 4 . . . . . . . . . Robot Schematic 6 | . . . . . . . . . 6 . . . . . . . . . . . . . . . . . . . . . . . . Robot Analysis 6 | . . . . . . . . . . . . . . . . . . . . . 1 . . 4 . . . . . 1 . . . Prototype ID Bank 17 | . 1 . . . 3 . . . 3 . . . . . 1 1 . . . . . . . 4 . . 1 . . 3 . . . Open Door 7 | . . . . . . . 1 . . . 1 . . . . . . . 2 . . 1 . . . . . . 1 1 . . . Open DSF 1 | . . . . . . 1 . . . . . . . . . . . . . . . . . . . . . . . . . . . Branch Access Points 6 | . . . . . . 1 . . . . . . . . . 1 . . . . 1 . . . . 1 1 1 . . . . . Emergency Access Points 2 | . . . . . . . . . . . . . . . . . . . . . . . . . . . . 1 1 . . . . Fabricator Index 1 | . . . . . . . . . . . . . . . . . . . . . . . . . . . . . . 1 . . . Garrison Index 1 | . . . . . . . . . . . . . . . . . . . . . . . . . . . . . 1 . . . . Unreport Threat 33 | . 3 . . . 4 . . . . . 3 . . . 5 4 . . . . 4 . . . . 2 2 . 3 3 . . . Locate Traps 3 | . 1 . . . . . . . . . . . . . 2 . . . . . . . . . . . . . . . . . . Disarm Traps 3 | . . . . . . . . . . . . . . . . . . . . . 3 . . . . . . . . . . . . Reprogram Traps 4 | . 1 . . . . . . . . . . . . . . . . . . . . . . . . . 3 . . . . . . Recall Extermination 1 | . . . . . . . . . . . . . . . . . . . . . 1 . . . . . . . . . . . . Registered Prototypes 2 | . . . . . . . . . . . 1 . . . . . . . . . . . . . . . . . . 1 . . . Zone Layout 2 | . . . . . . . . . . . . . . . 1 . . . . . . . . . . . 1 . . . . . . Disengage Seal 1 | . . . . . . . . . . . . . . . . . . . . . . . . . . . . . . . . 1 . Fabricator Hacks . | . . . . . . . . . . . . . . . . . . . . . . . . . . . . . . . . . . Repair Station Hacks . | . . . . . . . . . . . . . . . . . . . . . . . . . . . . . . . . . . Recycling Unit Hacks . | . . . . . . . . . . . . . . . . . . . . . . . . . . . . . . . . . . Scanalyzer . | . . . . . . . . . . . . . . . . . . . . . . . . . . . . . . . . . . Garrison Access Hacks 5 | . . . . . 1 . . . . . . . . . 1 . . . . . 1 . . . . . . . 1 1 . . . Seal Access 5 | . . . . . 1 . . . . . . . . . 1 . . . . . 1 . . . . . . . 1 1 . . . Unauthorized Hacks 16 | . . . . . . 3 . . . . 1 1 . . . . . . . . 1 . . . . . 6 . . 4 . . . Terminals 12 | . . . . . . 2 . . . . . 1 . . . . . . . . . . . . . . 5 . . 4 . . . Track 3 | . . . . . . . . . . . . . . . . . . . . . . . . . . . 2 . . 1 . . . Assimilate 5 | . . . . . . 2 . . . . . 1 . . . . . . . . . . . . . . 2 . . . . . . Botnet 4 | . . . . . . . . . . . . . . . . . . . . . . . . . . . 1 . . 3 . . . Fabricators 4 | . . . . . . 1 . . . . 1 . . . . . . . . . 1 . . . . . 1 . . . . . . Liberate 4 | . . . . . . 1 . . . . 1 . . . . . . . . . 1 . . . . . 1 . . . . . . Repair Stations . | . . . . . . . . . . . . . . . . . . . . . . . . . . . . . . . . . . Recycling Units . | . . . . . . . . . . . . . . . . . . . . . . . . . . . . . . . . . . Scanalyzers . | . . . . . . . . . . . . . . . . . . . . . . . . . . . . . . . . . . Garrison Access . | . . . . . . . . . . . . . . . . . . . . . . . . . . . . . . . . . . Data Cores Recovered 5 | . . . . . 1 . . . . . 1 . . . . 1 . . . . . . . . . . . . 1 . . 1 . Used 3 | . . . . . 1 . . . . . 1 . . . . 1 . . . . . . . . . . . . . . . . . Hacking Detections 62 | . 3 . . . 8 4 . . . . 5 1 1 . 11 3 . . . . 4 1 . . . . 4 1 7 6 1 2 . Full Trace Events 8 | . 1 . . . 1 1 . . . . 1 1 1 . 1 . . . . . . . . . . . . . 1 . . . . Feedback Events . | . . . . . . . . . . . . . . . . . . . . . . . . . . . . . . . . . . Feedback Blocked . | . . . . . . . . . . . . . . . . . . . . . . . . . . . . . . . . . . Robot Schematics Acquired 7 | . . . . . . . . . 6 . . . . . . . . . . . . . . . . . . . . 1 . . . Robots Built . | . . . . . . . . . . . . . . . . . . . . . . . . . . . . . . . . . . Authchips . | . . . . . . . . . . . . . . . . . . . . . . . . . . . . . . . . . . Time . | . . . . . . . . . . . . . . . . . . . . . . . . . . . . . . . . . . Total Robot Build Rating . | . . . . . . . . . . . . . . . . . . . . . . . . . . . . . . . . . . Part Schematics Acquired 21 | . . . . . . 2 . . 10 . . . . . . . . . . . . . . 4 . . 1 . . 4 . . . Parts Built . | . . . . . . . . . . . . . . . . . . . . . . . . . . . . . . . . . . Authchips . | . . . . . . . . . . . . . . . . . . . . . . . . . . . . . . . . . . Time . | . . . . . . . . . . . . . . . . . . . . . . . . . . . . . . . . . . Total Part Build Rating . | . . . . . . . . . . . . . . . . . . . . . . . . . . . . . . . . . . Parts Repaired . | . . . . . . . . . . . . . . . . . . . . . . . . . . . . . . . . . . Time . | . . . . . . . . . . . . . . . . . . . . . . . . . . . . . . . . . . Parts Recycled . | . . . . . . . . . . . . . . . . . . . . . . . . . . . . . . . . . . Recycled Matter . | . . . . . . . . . . . . . . . . . . . . . . . . . . . . . . . . . . Retrieved Matter . | . . . . . . . . . . . . . . . . . . . . . . . . . . . . . . . . . . Retrieved Components . | . . . . . . . . . . . . . . . . . . . . . . . . . . . . . . . . . . Parts Scanalyzed . | . . . . . . . . . . . . . . . . . . . . . . . . . . . . . . . . . . Part Schematics Acquired . | . . . . . . . . . . . . . . . . . . . . . . . . . . . . . . . . . . Parts Damaged . | . . . . . . . . . . . . . . . . . . . . . . . . . . . . . . . . . . Bothacking | -11 -10 -10 -10 -9 -8 -7 -7 -7 -7 -6 -6 -6 -6 -6 -6 -5 -5 -5 -5 -4 -4 -4 -4 -4 -3 -3 -3 -2 -2 -2 -1 -1 -1 ------------ Run | Scr Mat Min Exi Min Mat Fac Low Low Dat Pro Fac Ext Cet Arc Hub Fac Upp Upp War Pro Fac Upp Upp Zhi Pro Res Tes Res Qua Sec Acc Com Ac0 Used RIF Installer . | . . . . . . . . . . . . . . . . . . . . . . . . . . . . . . . . . . Robots Hacked . | . . . . . . . . . . . . . . . . . . . . . . . . . . . . . . . . . . Non-combat . | . . . . . . . . . . . . . . . . . . . . . . . . . . . . . . . . . . Combat . | . . . . . . . . . . . . . . . . . . . . . . . . . . . . . . . . . . Robot Hacks Applied . | . . . . . . . . . . . . . . . . . . . . . . . . . . . . . . . . . . Relay Couplers Released 2 | . . . . . . . . . . . . . . . . . . . . . . . . . . . 2 . . . . . . Programmers 2 | . . . . . . . . . . . . . . . . . . . . . . . . . . . 2 . . . . . . Fabnet Peak Effective % . | . . . . . . . . . . . . . . . . . . . . . . . . . . . . . . . . . . Robots Rewired 10 | . . . . . . . . . . 2 . . . . . . 5 . . . . . 2 . . . 1 . . . . . . Allies Hacked . | . . . . . . . . . . . . . . . . . . . . . . . . . . . . . . . . . . Hacks Repelled . | . . . . . . . . . . . . . . . . . . . . . . . . . . . . . . . . . . Allies | -11 -10 -10 -10 -9 -8 -7 -7 -7 -7 -6 -6 -6 -6 -6 -6 -5 -5 -5 -5 -4 -4 -4 -4 -4 -3 -3 -3 -2 -2 -2 -1 -1 -1 -------- Run | Scr Mat Min Exi Min Mat Fac Low Low Dat Pro Fac Ext Cet Arc Hub Fac Upp Upp War Pro Fac Upp Upp Zhi Pro Res Tes Res Qua Sec Acc Com Ac0 Total Allies 44 | . . 2 . 3 . 7 . . . 3 . 9 5 . . . 5 . . . . . 2 . . . 2 . . . 3 3 . Largest Group 8 | . . 2 1 3 3 3 . . . 3 3 8 6 5 4 . 5 5 5 . . . 2 . . . 1 . . . 3 3 . Highest-Rated Group 506 | . . 43 31 40 40 93 . . . 145 145 359 506 473 377 . 171 171 171 . . . 77 . . . 124 . . . 374 372 . Highest-Rated Ally 159 | . . 31 31 16 16 31 . . . 96 96 159 159 96 96 . 49 49 49 . . . 47 . . . 124 . . . 131 131 . Total Orders . | . . . . . . . . . . . . . . . . . . . . . . . . . . . . . . . . . . Ally Attacks 452 | . . 4 . . 22 39 . . . 27 27 92 69 13 49 . 2 13 13 . . . 2 . . . 16 . . . 61 3 . Total Damage 15197 | . . 63 . . 220 675 . . . 827 373 1941 2182 464 1891 . 37 235 347 . . . 40 . . . 3302 . . . 2587 13 . Kills 85 | . . 2 . . 2 8 . . . 4 5 11 11 1 11 . . 1 3 . . . 1 . . . 11 . . . 14 . . Allies Corrupted 3 | . . . . . . . . . . . . . . . 2 . . . . . . . 1 . . . . . . . . . . Allies Melted 2 | . . . . . . 1 . . . . . . . . . . . . . . . . . . . . 1 . . . . . . Intel | -11 -10 -10 -10 -9 -8 -7 -7 -7 -7 -6 -6 -6 -6 -6 -6 -5 -5 -5 -5 -4 -4 -4 -4 -4 -3 -3 -3 -2 -2 -2 -1 -1 -1 ------- Run | Scr Mat Min Exi Min Mat Fac Low Low Dat Pro Fac Ext Cet Arc Hub Fac Upp Upp War Pro Fac Upp Upp Zhi Pro Res Tes Res Qua Sec Acc Com Ac0 Robot Analysis Total 6 | . . . . . . . . . . . . . . . . . . . . . 1 . . 4 . . . . . 1 . . . Derelict Logs Recovered 14 | . . 2 . 1 . . 1 1 . 1 . . . . . . 2 2 . 2 . 1 1 . . . . . . . . . . Drone Launches . | . . . . . . . . . . . . . . . . . . . . . . . . . . . . . . . . . . Drone Recoveries . | . . . . . . . . . . . . . . . . . . . . . . . . . . . . . . . . . . Exploration | -11 -10 -10 -10 -9 -8 -7 -7 -7 -7 -6 -6 -6 -6 -6 -6 -5 -5 -5 -5 -4 -4 -4 -4 -4 -3 -3 -3 -2 -2 -2 -1 -1 -1 ------------- Run | Scr Mat Min Exi Min Mat Fac Low Low Dat Pro Fac Ext Cet Arc Hub Fac Upp Upp War Pro Fac Upp Upp Zhi Pro Res Tes Res Qua Sec Acc Com Ac0 Turns Passed 28028 | 127 656 520 716 796 1816 1324 1931 746 165 1376 606 884 678 160 1262 970 523 767 610 361 804 441 546 212 492 559 976 338 1400 1265 458 2067 1476 Spaces Moved 18900 | 77 312 298 385 474 949 721 1174 446 99 758 390 601 356 104 828 740 413 689 533 311 632 377 452 187 434 516 680 289 1141 894 334 1511 795 Core 9 | 9 . . . . . . . . . . . . . . . . . . . . . . . . . . . . . . . . . Treads 5348 | 68 312 298 385 474 949 721 1174 446 99 422 . . . . . . . . . . . . . . . . . . . . . . . Legs 13509 | . . . . . . . . . . 336 390 601 356 104 828 740 413 689 533 311 632 377 452 187 434 516 680 289 1141 894 334 1511 761 Wheels . | . . . . . . . . . . . . . . . . . . . . . . . . . . . . . . . . . . Hover . | . . . . . . . . . . . . . . . . . . . . . . . . . . . . . . . . . . Flight . | . . . . . . . . . . . . . . . . . . . . . . . . . . . . . . . . . . Fastest Speed 50 | 50 160 160 160 160 160 160 160 160 160 120 120 120 120 120 100 100 100 100 100 100 100 100 100 100 100 100 98 102 100 112 112 112 108 Average Speed 123 | 147 160 160 160 160 160 160 162 160 160 161 120 120 120 120 118 100 100 100 100 100 100 100 100 100 100 100 100 102 106 112 112 112 111 Slowest Speed 260 | 160 160 160 160 160 240 160 240 160 160 260 120 120 120 120 120 100 100 100 100 100 100 100 100 100 100 100 102 106 175 112 112 112 112 Overloaded Moves . | . . . . . . . . . . . . . . . . . . . . . . . . . . . . . . . . . . Propulsion Burnouts . | . . . . . . . . . . . . . . . . . . . . . . . . . . . . . . . . . . Robots Hopped . | . . . . . . . . . . . . . . . . . . . . . . . . . . . . . . . . . . Cave-ins Triggered 1 | . . . . . . . . . . . . . . . . . . . . . . . 1 . . . . . . . . . . Teleports 2 | . . . . . . . . . . . . . . . . . . . . . . . . . . . . . 1 . . 1 . Microwarps 3 | . . . . . . . . . . . . . . . . . . . . . . . . . . . . . . . . . 3 Exploration Rate (%) 56 | 5 47 66 87 93 72 25 95 64 69 87 12 86 70 76 88 23 54 70 81 54 22 50 59 62 58 13 81 10 87 45 13 53 44 Regions Visited 33 Branch Regions 24 Pre-discovered Areas 14 | . . 1 . . . . 2 . 1 . . . . . . . 1 . . 1 . 4 1 3 . . . . . . . . . Known Exits Taken 33 | 1 1 1 1 1 1 1 1 1 1 1 1 1 1 1 1 1 1 1 1 1 1 1 1 1 1 1 1 1 1 1 1 1 . Unknown Exits Taken . | . . . . . . . . . . . . . . . . . . . . . . . . . . . . . . . . . . Scrap Searched 19 | . . . . 2 . . 3 3 . 1 . . . . . . 1 2 . 1 . 1 2 . 3 . . . . . . . . Spaces Dug 65 | . . . . . . . . . . . . . . . . . . 1 . . . . 1 . . 2 15 4 7 5 12 11 7 Terrain Destroyed 1924 | . . . . . . . . . . . 30 4 51 . 534 14 7 4 . 4 4 1 8 . 3 8 76 7 35 37 18 1007 72 Melee . | . . . . . . . . . . . . . . . . . . . . . . . . . . . . . . . . . . Projectile 299 | . . . . . . . . . . . . 4 5 . 19 14 7 4 . 4 4 1 8 . 3 8 14 7 26 37 18 44 72 AOE 1625 | . . . . . . . . . . . 30 . 46 . 515 . . . . . . . . . . . 62 . 9 . . 963 . Terrain Rammed . | . . . . . . . . . . . . . . . . . . . . . . . . . . . . . . . . . . Walls Destroyed . | . . . . . . . . . . . . . . . . . . . . . . . . . . . . . . . . . . Machines Disabled . | . . . . . . . . . . . . . . . . . . . . . . . . . . . . . . . . . . Actions | -11 -10 -10 -10 -9 -8 -7 -7 -7 -7 -6 -6 -6 -6 -6 -6 -5 -5 -5 -5 -4 -4 -4 -4 -4 -3 -3 -3 -2 -2 -2 -1 -1 -1 --------- Run | Scr Mat Min Exi Min Mat Fac Low Low Dat Pro Fac Ext Cet Arc Hub Fac Upp Upp War Pro Fac Upp Upp Zhi Pro Res Tes Res Qua Sec Acc Com Ac0 Total 21859 | 87 385 315 485 509 1122 840 1196 461 106 851 469 699 538 129 953 880 483 748 601 346 762 413 501 207 464 537 899 320 1255 1048 379 1783 1088 Wait 903 | . 17 . 101 12 28 55 4 2 . 4 5 36 129 5 32 4 16 37 51 16 91 8 11 1 6 2 79 . 7 35 6 98 5 Move 18836 | 76 311 297 384 473 948 720 1173 445 98 757 389 600 355 103 827 739 412 688 532 310 631 376 451 186 433 515 679 288 1140 893 333 1510 764 Hop . | . . . . . . . . . . . . . . . . . . . . . . . . . . . . . . . . . . Pick Up 78 | . 2 . . 2 5 3 2 2 . 2 3 2 . . 2 5 . 2 1 2 2 1 1 2 . 1 10 . 8 1 2 8 7 Fast Attach 188 | 9 3 1 . 2 22 9 1 1 4 7 5 2 2 4 8 9 . 2 5 . 4 6 . 3 3 2 17 7 15 19 3 8 5 Attach 31 | . . . . . 2 2 2 . . . 2 . 1 . . 2 . . 1 . 1 . . . . 1 5 . 5 . . 6 1 Detach 52 | 2 2 . . 2 12 2 3 . . 2 1 . 2 . 2 4 . . 1 . 1 . . . . . 3 . 1 . 3 6 3 Swap 27 | . . . . . 1 . 1 . . . 3 1 5 2 . 2 . 1 . 1 . . . . . . 2 . 2 . 2 . 4 Drop 216 | . 2 . . 3 17 10 3 2 4 7 10 3 2 5 10 9 . 4 5 3 6 6 1 4 2 3 29 6 17 14 3 12 14 Fire 911 | . 42 13 . 1 55 24 4 8 . 26 26 28 29 4 62 40 16 9 4 7 21 12 20 10 12 9 44 6 44 64 23 65 183 Melee . | . . . . . . . . . . . . . . . . . . . . . . . . . . . . . . . . . . Ram . | . . . . . . . . . . . . . . . . . . . . . . . . . . . . . . . . . . Kick 18 | . . . . . . . . . . . 7 1 . . 7 1 . . . . . . . . . . . . . . . 2 . Crush 15 | . . . . 3 6 6 . . . . . . . . . . . . . . . . . . . . . . . . . . . Escape Stasis 15 | . . . . . . . . . . . . 15 . . . . . . . . . . . . . . . . . . . . . Rewire 101 | . . . . . . . . . . 19 . . . . . . 26 . 1 . . . 3 1 . . 9 . . . . 42 . Trap . | . . . . . . . . . . . . . . . . . . . . . . . . . . . . . . . . . . Miscellaneous 468 | . 6 4 . 11 26 9 3 1 . 27 18 11 13 6 3 65 13 5 . 7 5 4 14 . 8 4 22 13 16 22 4 26 102 Route ------- -11/Scrapyard -10/Materials (discovered 3 exits: *Mat x2 / *Min) -10/Mines (discovered 2 exits: *Mat / *Exi) -10/Exiles -9/Mines (discovered 2 exits: *Mat x2) -8/Materials (discovered 3 exits: *Fac x3) -7/Factory (discovered 3 exits: *Fac / *Low x2) -7/Lower Caves -7/Lower Caves (discovered 2 exits: *Fac / *Dat) -7/Data Miner -6/Proximity Caves -6/Factory (discovered 3 exits: *Fac / *Low / *Ext) -6/Extension (discovered 3 exits: *Fac x2 / *Cet) -6/Cetus (discovered 2 exits: *Fac / *Arc) -6/Archives (discovered 2 exits: *Hub x2) -6/Hub_04(d) (discovered 4 exits: *Fac x4) -5/Factory (discovered 3 exits: *Fac / *Upp x2) -5/Upper Caves -5/Upper Caves (discovered 2 exits: Fac / *War) -5/Warlord -4/Proximity Caves -4/Factory (discovered 2 exits: *Upp x2) -4/Upper Caves -4/Upper Caves (discovered 2 exits: Res / *Zhi) -4/Zhirov -3/Proximity Caves -3/Research (discovered 3 exits: Arm / *Tes x2) -3/Testing -2/Research (discovered 2 exits: *Qua x2) -2/Quarantine (discovered 2 exits: *Acc / *Sec) -2/Section 7 -1/Access (discovered 2 exits: Sur / *Com) -1/Command (discovered 3 exits: *Sur x2 / *Ac0) -1/Access_0 History --------- Turn | Location | Event 1 | -11/Scrapyard | Upgraded with Propulsion slot (x1) 1 | -11/Scrapyard | Upgraded with Utility slot (x2) 1 | -11/Scrapyard | Upgraded with Weapon slot (x1) 12 | -11/Scrapyard | Identified exit to Materials 12 | -11/Scrapyard | Discovered exit to Materials (range 15) 128 | -11/Scrapyard | Entered Materials 326 | -10/Materials | Identified exit to Materials 326 | -10/Materials | Discovered exit to Materials (range 5) 387 | -10/Materials | Identified exit to Mines 387 | -10/Materials | Discovered exit to Mines (range 12) 596 | -10/Materials | Build established: Hacker-Skirmisher 640 | -10/Materials | Discovered exit to Materials (range 15) 784 | -10/Materials | Entered Mines 822 | -10/Mines | Assembled infested the area 988 | -10/Mines | Reached level 2 1162 | -10/Mines | Learned location of Zion (-6) 1165 | -10/Mines | Learned Materials interactive machine intel 1169 | -10/Mines | Discovered exit to Materials (range 11) 1234 | -10/Mines | Upgraded with Power slot (x1) 1298 | -10/Mines | Deemed a non-threat by the Exiles lab entrance 1298 | -10/Mines | Identified exit to Exiles 1298 | -10/Mines | Discovered exit to Exiles (range 5) 1304 | -10/Mines | Entered Exiles 1304 | -10/Exiles | Accompanied by 1 ally 1334 | -10/Exiles | Led the pair of lost Derelicts to a safe place 1343 | -10/Exiles | Met 8R-AWN 1372 | -10/Exiles | Met EX-HEX 1413 | -10/Exiles | Met EX-BIN 1706 | -10/Exiles | Met EX-DEC 1741 | -10/Exiles | Visited The Gauntlet 2005 | -10/Exiles | Identified exit to Mines 2005 | -10/Exiles | Discovered exit to Mines (range 11) 2020 | -10/Exiles | Entered Mines 2022 | -9/Mines | Reached level 3 2025 | -9/Mines | Upgraded with Utility slot (x1) 2036 | -9/Mines | Identified exit to Materials 2036 | -9/Mines | Discovered exit to Materials (range 8) 2302 | -9/Mines | Received a Rocket Launcher from a helpful Derelict 2462 | -9/Mines | Assisted by bots powering up and referring to "LRC-V3" 2502 | -9/Mines | Discovered exit to Materials (range 5) 2619 | -9/Mines | Learned 4 Materials zone layouts 2816 | -9/Mines | Entered Materials 2816 | -8/Materials | Accompanied by 3 allies 2817 | -8/Materials | Identified exit to Factory 2818 | -8/Materials | Loaded intel: 19 interactive machine locations 2818 | -8/Materials | Reached level 4 2818 | -8/Materials | Reached level 5 2820 | -8/Materials | Upgraded with Weapon slot (x2) 2839 | -8/Materials | Reached level 6 2874 | -8/Materials | Upgraded with Propulsion slot (x1) 3146 | -8/Materials | Discovered exit to Factory (range 15) 3212 | -8/Materials | Build established: Scavenger-Skirmisher 3370 | -8/Materials | Reached level 7 3403 | -8/Materials | Upgraded with Utility slot (x1) 3913 | -8/Materials | Discovered exit to Factory (range 15) 4068 | -8/Materials | Build established: Hacker-Skirmisher 4509 | -8/Materials | Reached level 8 4632 | -8/Materials | Entered Factory 4634 | -7/Factory | Reached level 9 4637 | -7/Factory | Upgraded with Utility slot (x1) 4925 | -7/Factory | Reached level 10 5236 | -7/Factory | Upgraded with Utility slot (x1) 5554 | -7/Factory | Reached level 11 5584 | -7/Factory | Identified exit to Factory 5584 | -7/Factory | Discovered exit to Factory (range 14) 5634 | -7/Factory | Identified exit to Lower Caves 5762 | -7/Factory | Upgraded with Power slot (x1) 5956 | -7/Factory | Entered Lower Caves 5958 | -7/Lower Caves | Reached level 12 5986 | -7/Lower Caves | Encountered a Warlord checkpoint 6105 | -7/Lower Caves | Learned Research stockpile data 6105 | -7/Lower Caves | Learned Factory security intel 6105 | -7/Lower Caves | Learned Research security intel 6452 | -7/Lower Caves | Identified exit to Lower Caves 6452 | -7/Lower Caves | Discovered exit to Lower Caves (range 15) 7887 | -7/Lower Caves | Entered another Lower Caves area 7910 | -7/Lower Caves | Discovered exit to Factory (range 5) 8480 | -7/Lower Caves | Upgraded with Propulsion slot (x1) 8565 | -7/Lower Caves | Spotted B-75 Beast 8573 | -7/Lower Caves | Reached level 13 8573 | -7/Lower Caves | Destroyed B-75 Beast 8590 | -7/Lower Caves | Identified exit to Data Miner 8590 | -7/Lower Caves | Discovered exit to Data Miner (range 16) 8628 | -7/Lower Caves | Learned 8 Factory zone layouts 8633 | -7/Lower Caves | Entered Data Miner 8635 | -7/Data Miner | Identified exit to Proximity Caves 8635 | -7/Data Miner | Discovered exit to Proximity Caves (range 6) 8666 | -7/Data Miner | Met Data Miner 8698 | -7/Data Miner | Learned location of Section 7 (-2) 8698 | -7/Data Miner | Acquired the access code to Warlord's prototype stash 8728 | -7/Data Miner | Received God Mode back door access code from Data Miner 8798 | -7/Data Miner | Entered Proximity Caves 8800 | -6/Proximity Caves | Reached level 14 9037 | -6/Proximity Caves | Escorted by Enhanced Grunt 9505 | -6/Proximity Caves | Build established: Scavenger-Skirmisher 9524 | -6/Proximity Caves | Reached level 15 9529 | -6/Proximity Caves | Discovered exit to Factory (range 13) 9932 | -6/Proximity Caves | Attracted the attention of an 0b10 outpost 10113 | -6/Proximity Caves | Learned location of 1 exit from Factory 10174 | -6/Proximity Caves | Entered Factory 10174 | -6/Factory | Accompanied by 3 allies 10175 | -6/Factory | Identified exit to Extension 10176 | -6/Factory | Reached level 16 10201 | -6/Factory | Reached level 17 10335 | -6/Factory | Found Prototype Device 10335 | -6/Factory | Identified Exp. Thermal Shield 10374 | -6/Factory | Upgraded with Utility slot (x1) 10416 | -6/Factory | Spotted B-75 Beast 10424 | -6/Factory | Destroyed B-75 Beast 10546 | -6/Factory | Identified exit to Factory 10546 | -6/Factory | Discovered exit to Factory (range 15) 10615 | -6/Factory | Identified exit to Lower Caves 10615 | -6/Factory | Discovered exit to Lower Caves (range 16) 10617 | -6/Factory | Reached level 18 10662 | -6/Factory | Build established: Scavenger-Tank 10708 | -6/Factory | Incoming investigation squad redirected 10780 | -6/Factory | Entered Extension 10782 | -6/Extension | Disrupted transfer network 10835 | -6/Extension | Rescued a captive Derelict 10862 | -6/Extension | Rescued a captive Derelict 10863 | -6/Extension | Rescued a captive Derelict 10900 | -6/Extension | Rescued a captive Derelict 10905 | -6/Extension | Rescued a captive Derelict 10932 | -6/Extension | Rescued a captive Derelict 10933 | -6/Extension | Rescued a captive Derelict 10985 | -6/Extension | Rescued a captive Derelict 10990 | -6/Extension | Energy Cycler disabled 10991 | -6/Extension | Rescued a captive Derelict 10991 | -6/Extension | Rescued a captive Derelict 10993 | -6/Extension | Rescued a captive Derelict 10998 | -6/Extension | Rescued A7 11026 | -6/Extension | Incoming investigation squad redirected 11036 | -6/Extension | Spotted B-75 Beast 11045 | -6/Extension | Reached level 19 11049 | -6/Extension | Spotted B-75 Beast 11066 | -6/Extension | Destroyed B-75 Beast 11073 | -6/Extension | Destroyed B-75 Beast 11076 | -6/Extension | Discovered exit to Factory (range 14) 11336 | -6/Extension | Discovered exit to Factory (range 10) 11338 | -6/Extension | Identified exit to Cetus 11338 | -6/Extension | Discovered exit to Cetus (range 6) 11480 | -6/Extension | First assault squad dispatched 11502 | -6/Extension | Incoming assault squad redirected 11664 | -6/Extension | Entered Cetus 11664 | -6/Cetus | Accompanied by 3 allies (A7) 11669 | -6/Cetus | Acquired a Cetus Manufacturing Module code from A7 11684 | -6/Cetus | Spotted Cetus Guard 11684 | -6/Cetus | Spotted Cetus Guard 11687 | -6/Cetus | Spotted Cetus Guard 11687 | -6/Cetus | Spotted Cetus Guard 11695 | -6/Cetus | Allies destroyed Cetus Guard 11701 | -6/Cetus | Destroyed Cetus Guard 11708 | -6/Cetus | Destroyed Cetus Guard 11711 | -6/Cetus | Destroyed Cetus Guard 11769 | -6/Cetus | Started Cetus Manufacturing Module 11794 | -6/Cetus | Manufactured an Enhanced Grunt 11805 | -6/Cetus | Destroyed A7 11819 | -6/Cetus | Manufactured an Enhanced Grunt 11828 | -6/Cetus | Extracted ID and sensor layout for unrecognized location from A7's data core 11842 | -6/Cetus | Identified exit to Archives 11842 | -6/Cetus | Discovered exit to Archives (range 16) 11844 | -6/Cetus | Manufactured an Enhanced Grunt 11869 | -6/Cetus | Manufactured an Enhanced Grunt 11894 | -6/Cetus | Manufactured an Enhanced Grunt 11971 | -6/Cetus | Spotted Cetus Guard 11971 | -6/Cetus | Spotted Cetus Guard 11979 | -6/Cetus | Spotted Cetus Guard 11980 | -6/Cetus | Spotted Cetus Guard 11982 | -6/Cetus | Destroyed Cetus Guard 11987 | -6/Cetus | Destroyed Cetus Guard 11987 | -6/Cetus | Reached level 20 11987 | -6/Cetus | Destroyed Cetus Guard 11991 | -6/Cetus | Discovered exit to Factory (range 16) 11999 | -6/Cetus | Destroyed Cetus Guard 12004 | -6/Cetus | Met Revision 17 12342 | -6/Cetus | Entered Archives 12342 | -6/Archives | Accompanied by 5 allies 12342 | -6/Archives | Upgraded with Utility slot (x1) 12381 | -6/Archives | Identified exit to Hub_04(d) 12381 | -6/Archives | Discovered exit to Hub_04(d) (range 16) 12392 | -6/Archives | Unable to access archive contents 12397 | -6/Archives | Discovered exit to Hub_04(d) (range 16) 12455 | -6/Archives | Unable to access archive contents 12502 | -6/Archives | Entered Hub_04(d) 12502 | -6/Hub_04(d) | Accompanied by 4 allies 12574 | -6/Hub_04(d) | Disrupted transfer network 12664 | -6/Hub_04(d) | Discovered exit to Factory (range 13) 12953 | -6/Hub_04(d) | Discovered exit to Factory (range 9) 12992 | -6/Hub_04(d) | Reached level 21 13305 | -6/Hub_04(d) | Discovered exit to Factory (range 13) 13409 | -6/Hub_04(d) | Discovered exit to Factory (range 15) 13503 | -6/Hub_04(d) | Spotted B-75 Beast 13510 | -6/Hub_04(d) | Destroyed B-75 Beast 13529 | -6/Hub_04(d) | Network Hub disabled 13552 | -6/Hub_04(d) | First assault squad dispatched 13557 | -6/Hub_04(d) | Spotted Lightning 13558 | -6/Hub_04(d) | Spotted Lightning 13561 | -6/Hub_04(d) | Spotted Lightning 13566 | -6/Hub_04(d) | Destroyed Lightning 13579 | -6/Hub_04(d) | Incoming assault squad redirected 13582 | -6/Hub_04(d) | Incoming assault squad redirected 13593 | -6/Hub_04(d) | Destroyed Lightning 13605 | -6/Hub_04(d) | Spotted Lightning 13614 | -6/Hub_04(d) | Destroyed Lightning 13627 | -6/Hub_04(d) | Network Hub disabled 13629 | -6/Hub_04(d) | Spotted Lightning 13634 | -6/Hub_04(d) | Spotted Lightning 13642 | -6/Hub_04(d) | Core integrity fell below 50% 13646 | -6/Hub_04(d) | Destroyed Lightning 13652 | -6/Hub_04(d) | Destroyed Lightning 13662 | -6/Hub_04(d) | Destroyed Lightning 13682 | -6/Hub_04(d) | Found Prototype Device 13682 | -6/Hub_04(d) | Identified Exp. Phase Shifter 13685 | -6/Hub_04(d) | Found Prototype Device 13685 | -6/Hub_04(d) | Identified Exp. EM Disruption Field 13698 | -6/Hub_04(d) | Network Hub disabled 13700 | -6/Hub_04(d) | Spotted Lightning 13704 | -6/Hub_04(d) | Spotted Lightning 13706 | -6/Hub_04(d) | Destroyed Lightning 13706 | -6/Hub_04(d) | Spotted Lightning 13720 | -6/Hub_04(d) | Destroyed Lightning 13764 | -6/Hub_04(d) | Entered Factory 13765 | -5/Factory | Core integrity fell below 50% 13932 | -5/Factory | Reached level 22 13960 | -5/Factory | Incoming investigation squad redirected 14014 | -5/Factory | Identified exit to Factory 14014 | -5/Factory | Discovered exit to Factory (range 15) 14396 | -5/Factory | Identified exit to Upper Caves 14734 | -5/Factory | Entered Upper Caves 14773 | -5/Upper Caves | Attracted the attention of an 0b10 outpost 14787 | -5/Upper Caves | Reached level 23 14842 | -5/Upper Caves | Destroyed 7 combat bots 14896 | -5/Upper Caves | Encountered a Warlord checkpoint 14915 | -5/Upper Caves | Learned Factory non-interactive machine intel 14981 | -5/Upper Caves | Attracted the attention of an 0b10 checkpoint 14993 | -5/Upper Caves | Learned location of Armory (-3) 15019 | -5/Upper Caves | Identified exit to Upper Caves 15019 | -5/Upper Caves | Discovered exit to Upper Caves (range 15) 15151 | -5/Upper Caves | Attacked by a delusional Derelict stockpiling Unaware 15257 | -5/Upper Caves | Entered another Upper Caves area 15257 | -5/Upper Caves | Accompanied by 5 allies 15265 | -5/Upper Caves | Discovered exit to Factory (range 16) 15478 | -5/Upper Caves | Learned 4 Factory zone layouts 15513 | -5/Upper Caves | Spotted B-75 Beast 15524 | -5/Upper Caves | Destroyed B-75 Beast 15542 | -5/Upper Caves | Learned Factory terminal intel 15763 | -5/Upper Caves | Found Alien Artifact 15763 | -5/Upper Caves | Identified Core Expander 15763 | -5/Upper Caves | Installed Core Expander, added new Power slot 15899 | -5/Upper Caves | Attacked by a delusional Derelict stockpiling parts 15973 | -5/Upper Caves | Identified exit to Warlord 15973 | -5/Upper Caves | Discovered exit to Warlord (range 12) 16024 | -5/Upper Caves | Entered Warlord 16024 | -5/Warlord | Accompanied by 5 allies 16058 | -5/Warlord | System corruption cleaned by Quarantine Array 16260 | -5/Warlord | Met Warlord 16270 | -5/Warlord | Opened Warlord's prototype stash 16275 | -5/Warlord | Found Prototype Reactor 16275 | -5/Warlord | Identified Vortex Chain Reactor 16277 | -5/Warlord | Upgraded with Propulsion slot (x1) 16281 | -5/Warlord | Warlord's base attacked by MAIN.C 16290 | -5/Warlord | Found Prototype Device 16290 | -5/Warlord | Identified Exp. Focal Shield 16428 | -5/Warlord | Found Prototype Energy Cannon 16528 | -5/Warlord | Opened side exit 16581 | -5/Warlord | Spotted B-86 Titan 16581 | -5/Warlord | Spotted B-75 Beast 16581 | -5/Warlord | Spotted Executioner 16620 | -5/Warlord | Identified exit to Proximity Caves 16620 | -5/Warlord | Discovered exit to Proximity Caves (range 16) 16631 | -5/Warlord | Warlord forces counterattacked 16634 | -5/Warlord | Entered Proximity Caves 16636 | -4/Proximity Caves | Reached level 24 16761 | -4/Proximity Caves | Learned location of Quarantine (-2) 16882 | -4/Proximity Caves | Attracted the attention of an 0b10 checkpoint 16956 | -4/Proximity Caves | Discovered exit to Factory (range 14) 16978 | -4/Proximity Caves | Learned 4 Research zone layouts 16995 | -4/Proximity Caves | Entered Factory 16997 | -4/Factory | Loaded intel: 250 non-interactive machine locations 16998 | -4/Factory | Loaded intel: 25 terminal locations 17328 | -4/Factory | Reached level 25 17396 | -4/Factory | Upgraded with Utility slot (x1) 17473 | -4/Factory | Identified exit to Upper Caves 17799 | -4/Factory | Entered Upper Caves 17970 | -4/Upper Caves | Destroyed 7 combat bots 18031 | -4/Upper Caves | Learned location of 1 exit from Factory 18031 | -4/Upper Caves | Learned Extension trap positions 18031 | -4/Upper Caves | Learned Armory garrison access intel 18094 | -4/Upper Caves | Encountered a Warlord checkpoint 18107 | -4/Upper Caves | Spotted B-86 Titan 18177 | -4/Upper Caves | Destroyed B-86 Titan 18210 | -4/Upper Caves | Identified exit to Upper Caves 18210 | -4/Upper Caves | Discovered exit to Upper Caves (range 13) 18240 | -4/Upper Caves | Entered another Upper Caves area 18251 | -4/Upper Caves | Identified exit to Research 18251 | -4/Upper Caves | Discovered exit to Research (range 14) 18393 | -4/Upper Caves | Encountered a Warlord checkpoint 18568 | -4/Upper Caves | Destroyed 7 combat bots 18578 | -4/Upper Caves | Crushed by falling debris 18665 | -4/Upper Caves | Identified exit to Zhirov 18665 | -4/Upper Caves | Discovered exit to Zhirov (range 13) 18685 | -4/Upper Caves | Attracted the attention of an 0b10 checkpoint 18786 | -4/Upper Caves | Entered Zhirov 18786 | -4/Zhirov | Identified exit to Proximity Caves 18786 | -4/Zhirov | Discovered exit to Proximity Caves (range 3) 18788 | -4/Zhirov | Reached level 26 18804 | -4/Zhirov | Met Zhirov 18827 | -4/Zhirov | Learned location of Testing (-3) 18827 | -4/Zhirov | Learned location of Command (-1) 18846 | -4/Zhirov | Zhirov requested help retrieving the SGEMP Prototype 18863 | -4/Zhirov | Found Alien Artifact 18863 | -4/Zhirov | Identified Integrated Dissipator 18863 | -4/Zhirov | Installed Integrated Dissipator, increased core heat dissipation (+20) 18879 | -4/Zhirov | Found Alien Artifact 18998 | -4/Zhirov | Entered Proximity Caves 19331 | -3/Proximity Caves | Attracted the attention of an 0b10 checkpoint 19374 | -3/Proximity Caves | Upgraded with Weapon slot (x1) 19447 | -3/Proximity Caves | Discovered exit to Research (range 18) 19490 | -3/Proximity Caves | Entered Research 19492 | -3/Research | Reached level 27 19716 | -3/Research | Identified exit to Armory 19716 | -3/Research | Identified exit to Testing 19816 | -3/Research | Reached level 28 19828 | -3/Research | Upgraded with Utility slot (x1) 20049 | -3/Research | Entered Testing 20076 | -3/Testing | Found Prototype Energy Cannon 20076 | -3/Testing | Identified Imp. Potential Cannon 20188 | -3/Testing | Found Prototype Device 20188 | -3/Testing | Identified Adv. Kinecellerator 20374 | -3/Testing | Spotted Striker 20374 | -3/Testing | Destroyed Striker 20374 | -3/Testing | Spotted Striker 20376 | -3/Testing | Destroyed Striker 20456 | -3/Testing | Spotted Alpha 7 20463 | -3/Testing | Destroyed Alpha 7 20481 | -3/Testing | Identified Vortex Driver 20493 | -3/Testing | Stole the SGEMP Prototype 20615 | -3/Testing | Garrison activated, responded to threat 20635 | -3/Testing | Reached level 29 20771 | -3/Testing | Found Prototype Energy Gun 20771 | -3/Testing | Identified Tachyon Dispersion Ray 20804 | -3/Testing | Identified exit to Research 20804 | -3/Testing | Discovered exit to Research (range 16) 20908 | -3/Testing | Spotted PD-5S2SYXQ7GA 20922 | -3/Testing | Rewired PD-5S2SYXQ7GA 21021 | -3/Testing | Destroyed 10 combat bots 21025 | -3/Testing | Entered Research 21025 | -2/Research | Warlord forces began assault on 0b10 21027 | -2/Research | Reached level 30 21064 | -2/Research | Identified exit to Quarantine 21135 | -2/Research | Research machine network offline 21256 | -2/Research | Borebot progress halted 21363 | -2/Research | Entered Quarantine 21365 | -2/Quarantine | Reached level 31 21370 | -2/Quarantine | Identified Transdimensional Reconstructor 21370 | -2/Quarantine | Warped through subspace 21416 | -2/Quarantine | Found Transdimensional Reconstructor 21451 | -2/Quarantine | Cryocooling Duct disabled 21466 | -2/Quarantine | Ambient heat levels rising (+20) 21466 | -2/Quarantine | Non-combat units ordered to evacuate 21479 | -2/Quarantine | Build established: Generator-Tank 21564 | -2/Quarantine | Found Alien Artifact 21613 | -2/Quarantine | First assault squad dispatched 21630 | -2/Quarantine | Incoming assault squad redirected 21693 | -2/Quarantine | Identified Subatomic Replicator 21693 | -2/Quarantine | Used Subatomic Replicator to replicate Graphene Brace 21884 | -2/Quarantine | Incoming investigation squad redirected 22043 | -2/Quarantine | Spotted Fortress 22061 | -2/Quarantine | Destroyed Fortress 22309 | -2/Quarantine | Identified exit to Access 22309 | -2/Quarantine | Discovered exit to Access (range 16) 22315 | -2/Quarantine | Spotted Alpha 7 22320 | -2/Quarantine | Destroyed Alpha 7 22325 | -2/Quarantine | Found Prototype Processor 22325 | -2/Quarantine | Identified Exp. Targeting Computer 22381 | -2/Quarantine | Found Alien Launcher 22749 | -2/Quarantine | Identified exit to Section 7 22749 | -2/Quarantine | Discovered exit to Section 7 (range 14) 22763 | -2/Quarantine | Entered Section 7 22765 | -2/Section 7 | Reached level 32 22888 | -2/Section 7 | Found Alien Artifact 22888 | -2/Section 7 | Identified Integrity Redistributor 22888 | -2/Section 7 | Used Integrity Redistributor, redistributed integrity from core (-18) 22926 | -2/Section 7 | Found Alien Artifact 22926 | -2/Section 7 | Identified Integrated Mediator 22926 | -2/Section 7 | Installed Integrated Mediator, increased core attachment efficiency. 23013 | -2/Section 7 | Found Integrated Mediator 23013 | -2/Section 7 | Installed Integrated Mediator, increased core attachment efficiency. 23037 | -2/Section 7 | Found Alien Artifact 23037 | -2/Section 7 | Identified Microwarp Drive 23128 | -2/Section 7 | Discovered exit to Access (range 18) 23211 | -2/Section 7 | Spotted B-90 Cyclops 23254 | -2/Section 7 | Destroyed B-90 Cyclops 23317 | -2/Section 7 | Spotted S7 Guard 23323 | -2/Section 7 | Destroyed S7 Guard 23361 | -2/Section 7 | Spotted Alpha 7 23391 | -2/Section 7 | Destroyed 8 combat bots 23453 | -2/Section 7 | Spotted Alpha 7 23501 | -2/Section 7 | Destroyed Alpha 7 23521 | -2/Section 7 | Destroyed Alpha 7 23575 | -2/Section 7 | Found Alien Artifact 23575 | -2/Section 7 | Identified Integrated Thermoelectric Network 23575 | -2/Section 7 | Installed Integrated Thermoelectric Network, gained heat-energy exchange potential 23620 | -2/Section 7 | Spotted B-99 Colossus 23645 | -2/Section 7 | Destroyed B-99 Colossus 23738 | -2/Section 7 | Found Alien Artifact 23738 | -2/Section 7 | Identified LRC Boosters 23738 | -2/Section 7 | Installed LRC Boosters, increased mass support (+10) 23746 | -2/Section 7 | Found Alien Artifact 23746 | -2/Section 7 | Identified LRC Insulator 23746 | -2/Section 7 | Installed LRC Insulator, gained EM resistance (25) 24028 | -2/Section 7 | Entered Access 24029 | -1/Access | Loaded intel: 107 machine locations 24029 | -1/Access | Loaded intel: 61 trap records 24029 | -1/Access | Identified exit to Surface 24029 | -1/Access | Discovered exit to Surface (range 89) 24029 | -1/Access | Identified exit to Command 24029 | -1/Access | Discovered exit to Command (range 99) 24029 | -1/Access | Delivered the SGEMP Prototype to Zhirov 24029 | -1/Access | Zhirov transferred Access data 24029 | -1/Access | Reached level 33 24030 | -1/Access | Reached level 34 24051 | -1/Access | Found Prototype Device 24051 | -1/Access | Identified Exp. Shock Absorption System 24187 | -1/Access | Found Fusion Bomb Launcher 24354 | -1/Access | Spotted B-99 Colossus 24365 | -1/Access | Allies destroyed B-99 Colossus 24486 | -1/Access | Entered Command 24486 | -1/Command | Accompanied by 3 allies (incl. Zhirov, Perun, Svarog) 24487 | -1/Command | Zhirov warped through subspace 24488 | -1/Command | Reached level 35 24488 | -1/Command | Upgraded with Utility slot (x1) 24714 | -1/Command | Disengaged cave seal 24714 | -1/Command | Derelicts emerged from the dark tunnel 24714 | -1/Command | Welcomed Warlord to Command 24733 | -1/Command | Phase Generator disabled 24826 | -1/Command | Identified Sigix Terminator 24842 | -1/Command | Spotted Combat Programmer 24843 | -1/Command | Spotted M Guard 24843 | -1/Command | Spotted Combat Programmer 24849 | -1/Command | Fired Sigix Terminator 24849 | -1/Command | Destroyed Combat Programmer 24849 | -1/Command | Reached level 36 24849 | -1/Command | Destroyed B4-NIS(g) 24868 | -1/Command | Warlord commented on Warlord statues 24881 | -1/Command | Spotted M Guard 24883 | -1/Command | All MAIN.C guards destroyed 24964 | -1/Command | Met MAIN.C 24973 | -1/Command | 0b10 Conduit disabled 25004 | -1/Command | Reached level 37 25004 | -1/Command | Destroyed MAIN.C Shell 25007 | -1/Command | MAIN.C activated Command garrisons 25010 | -1/Command | Zhirov used SGEMP to disable MAIN.C 25087 | -1/Command | Discovered exit to Surface (range 51) 25087 | -1/Command | Discovered exit to Surface (range 108) 25087 | -1/Command | Extracted map data and part IDs from MAIN.C's data core 25094 | -1/Command | Found Zero-point Reactor 25099 | -1/Command | Found Beam Splitter 25107 | -1/Command | Found Exp. Targeting Computer 26138 | -1/Command | Build established: Scavenger-Tank 26512 | -1/Command | Warped through subspace to slip node 26512 | -1/Command | Identified exit to Access_0 26512 | -1/Command | Discovered exit to Access_0 (range 5) 26553 | -1/Command | Entered Access_0 26554 | -1/Access_0 | Met Architect 26564 | -1/Access_0 | Architect warped through subspace 26577 | -1/Access_0 | Destroyed A8 26612 | -1/Access_0 | Architect warped through subspace 26664 | -1/Access_0 | Architect warped through subspace 26696 | -1/Access_0 | Architect warped through subspace 26734 | -1/Access_0 | Architect warped through subspace 26747 | -1/Access_0 | Found Exp. Powered Armor 26758 | -1/Access_0 | Architect warped through subspace 26795 | -1/Access_0 | Architect warped through subspace 26844 | -1/Access_0 | Architect warped through subspace 26864 | -1/Access_0 | Subspace Access Node disabled 26881 | -1/Access_0 | Architect warped through subspace 26915 | -1/Access_0 | A6 warped into view 26931 | -1/Access_0 | Destroyed A6 26943 | -1/Access_0 | Architect warped through subspace 26986 | -1/Access_0 | Architect warped through subspace 27039 | -1/Access_0 | Architect warped through subspace 27095 | -1/Access_0 | Architect warped through subspace 27161 | -1/Access_0 | Architect warped through subspace 27216 | -1/Access_0 | Architect warped through subspace 27255 | -1/Access_0 | Architect warped through subspace 27308 | -1/Access_0 | Architect warped through subspace 27343 | -1/Access_0 | Architect warped through subspace 27377 | -1/Access_0 | Architect warped through subspace 27414 | -1/Access_0 | Architect warped through subspace 27432 | -1/Access_0 | Found Exp. Core Analyzer 27445 | -1/Access_0 | Architect warped through subspace 27467 | -1/Access_0 | Architect warped through subspace 27495 | -1/Access_0 | Architect warped through subspace 27502 | -1/Access_0 | A5 warped into view 27518 | -1/Access_0 | Destroyed A5 27525 | -1/Access_0 | Architect warped through subspace 27551 | -1/Access_0 | Architect warped through subspace 27576 | -1/Access_0 | Architect warped through subspace 27594 | -1/Access_0 | Architect warped through subspace 27643 | -1/Access_0 | Architect warped through subspace 27658 | -1/Access_0 | Architect warped through subspace 27673 | -1/Access_0 | Architect warped through subspace 27683 | -1/Access_0 | Found Exp. Weapon Cycler 27695 | -1/Access_0 | Architect warped through subspace 27713 | -1/Access_0 | Architect warped through subspace 27723 | -1/Access_0 | Architect warped through subspace 27740 | -1/Access_0 | Architect warped through subspace 27749 | -1/Access_0 | Architect warped through subspace 27770 | -1/Access_0 | Architect warped through subspace 27777 | -1/Access_0 | Architect warped through subspace 27787 | -1/Access_0 | Subspace Access Node disabled 27810 | -1/Access_0 | Architect warped through subspace 27843 | -1/Access_0 | Architect warped through subspace 27860 | -1/Access_0 | Build established: Generator-Gunner 27872 | -1/Access_0 | Architect warped through subspace 27886 | -1/Access_0 | Subspace Access Node disabled 27914 | -1/Access_0 | Architect warped through subspace 27933 | -1/Access_0 | Architect warped through subspace 27954 | -1/Access_0 | Architect warped through subspace 27968 | -1/Access_0 | Architect warped through subspace 27983 | -1/Access_0 | Architect warped through subspace 27994 | -1/Access_0 | Architect warped through subspace 27995 | -1/Access_0 | Subspace Access Node disabled 28017 | -1/Access_0 | Reached level 38 28017 | -1/Access_0 | Destroyed Architect 28018 | -1/Access_0 | Architect triggered a singularity event 28029 | -1/Access_0 | Crushed by singularity! Last Messages --------------- 28015_ Penetrated by Quantum Shear. 28017_ Architect: "If I can't win, no one wins!" 28017_ Reached level 38. [Achievement: The Bigger They Are] 28017_ Architect destroyed. 28018_ A0_COM: Initiating irreversible singularity event. Goodbye. 28019_ A0_COM: 10. 28020_ A0_COM: 9. 28021_ A0_COM: 8. 28021_ Dropped Adv. Terrain Scanner. 28022_ A0_COM: 7. 28023_ A0_COM: 6. 28024_ A0_COM: 5. 28024_ Microwarped (distance 5). 28025_ A0_COM: 4. 28025_ Microwarped (distance 14). 28026_ A0_COM: 3. 28026_ Microwarped (distance 15). 28027_ A0_COM: 2. 28028_ A0_COM: 1. Map ----- +----------------------------------------------------+ | ?????????????????????????????????????????????????? | | ?????????????????????????????????????????????????? | | ?????????????????????????????????????????????????? | | ?????????????????????????????????????????????????? | | ?????????????????????????????????????????????????? | | ?????????????????????????????????????????????????? | | ?????????????????????????????????????????????????? | | ?????????????????????????????????????????????????? | | ?????????????????????????????????????????????????? | | ?????????????????????????????????????????????????? | | ?????????????????????????????????????????????????? | | ?????????????????????????????????????????????????? | | ??????????????????????#?????????#????????????????? | | ????????????????????#??? #????????????????? | | ?????????????????????#??# #?### ???????????? | | ?????????????????????????# ? ?#????????? | | ????????????????????? ?##?# ?? ???????????? | | ????????????????? ? ###?# #?## ##?###???????? | | ?????????????? ???? #### ####? #?#####??????? | | ?????????????# ????? ? ### =#?## ###?#####????? | | ?????????????#??? ? ? !!#### ######??#? ??? | | ??????????????#?# ?? *$%[##? ###?#####? ??? | | ????????????##??## ? ## !!!=### ######### ??? | | ???????????#####?# ? ##### =[!### ######?## ?#?? | | ??????????#??#?##? ##### ;##" "####### ##?#? | | ???????????###?###? ### @ ; "" ##?# ?##?# | | ????????????##?######## ; "" #### ## | | ??????????####?######## ;##" ### | | ??????????#######?##### #### ###### | | ????????? ##?######?### ###" ######?# #### | | ???????? #######?##### ### ;###"############### | | ???????? ############# ##";! ;;# ################ | | ??????## #?########### ;;; ############### | | ????##?# #?########### ;# ############# | | ???????# ################ ########## | | ???#??## ?################ ;### ##### ? | | ???##?#?? ############### ";;##" ;# #### | | ?????### ############### ""#### ;" ####### | | ??#?#?##? ############# ###### "######## | | ?#???###? ######## #### ##### ######### | | ???##?## ?########""#### ####" ######## | | ??##??#? ######## ##### ######" "# ##### | | ??#?#### ?#######" "######## #####"" #### | | ?#? ? ? ?###### #"############" ### | | #?# #### ##### "" ########" "## | | ?## #### ?#### "" "## ### | | ?## #### #?##### #""" """##" | | ### ##?? ###### #### "" "" """""""""" | | ??# ####? ##### ##"" "" "#""#"="#" | | # ? ## #####" ######### % " !!!!! ! | +----------------------------------------------------+ Best States ------------- Heat Dissipation 189 Energy Generation 162 Energy Capacity 1980 Matter Stores 300 Matter Capacity 300 Sight Range 18 Robot Scan Range 28 Terrain Scan Range 20 Terrain Scan Density 510 Power Amplification 40 Additional Mass Support 12 Base Temperature (-) 100 Armor Coverage 600 Resistance: KI 65 Resistance: TH 100 Resistance: EX 100 Resistance: EM 100 Resistance: I 35 Resistance: S 35 Resistance: P 35 Propulsion Shielding 33 Utility Shielding 33 Weapon Shielding 90 Weapon Cycling 30 Phase Shifting 20 Evasion (%) 75 Targeting Accuracy 12 Core Analysis 8 Recoil Reduction 3 Energy Filtering 50 Particle Charging 25 Kinecelleration 50 Offensive Hacking 20 Item Schematics ----------------- Gatling Laser | -7/Factory | Hacked Med. Treads | -7/Factory | Hacked Combat Drone Bay | -7/Data Miner | Free Lgt. Regenerative Plating | -7/Data Miner | Free Cld. Aerolev Unit | -7/Data Miner | Free Thermal Defense Suite | -7/Data Miner | Free Cld. Plasma Cannon | -7/Data Miner | Free Nuclear Pulse Array | -7/Data Miner | Free Adv. System Restoration Module | -7/Data Miner | Free Hvy. Phase Cannon | -7/Data Miner | Free Impulse Thruster | -7/Data Miner | Free Imp. Dynamic Insulation System | -7/Data Miner | Free Assault Drone Bay | -4/Zhirov | Free Exp. Heat Sink | -4/Zhirov | Free Exp. Optical Array | -4/Zhirov | Free Imp. Arc Thrower | -4/Zhirov | Free Tactical Quantum Warhead | -3/Testing | Archive Centrium Heavy Armor Plating | -2/Section 7 | Archive Adv. Variable Charge Gun | -2/Section 7 | Archive Helical Railgun | -2/Section 7 | Archive Exp. Thermal Defense Suite | -2/Section 7 | Archive Robot Schematics ------------------ R-10 Processor | -7/Data Miner | Free G-50 Soldier | -7/Data Miner | Free H-66 Slayer | -7/Data Miner | Free X-67 Chaingunner | -7/Data Miner | Free X-72 Disruptor | -7/Data Miner | Free B-48 Gladiator | -7/Data Miner | Free H-88 Terminator | -2/Section 7 | Archive Fabricated ------------ Nothing Alien Tech Used ----------------- Core Expander Integrated Dissipator Transdimensional Reconstructor Subatomic Replicator Integrity Redistributor Integrated Mediator Microwarp Drive Integrated Thermoelectric Network LRC Boosters LRC Insulator Sigix Terminator Achievements -------------- Sorry Old Pal The Bigger They Are Challenges ------------ None RPGLIKE | -11 -10 -10 -10 -9 -8 -7 -7 -7 -7 -6 -6 -6 -6 -6 -6 -5 -5 -5 -5 -4 -4 -4 -4 -4 -3 -3 -3 -2 -2 -2 -1 -1 -1 --------- Run | Scr Mat Min Exi Min Mat Fac Low Low Dat Pro Fac Ext Cet Arc Hub Fac Upp Upp War Pro Fac Upp Upp Zhi Pro Res Tes Res Qua Sec Acc Com Ac0 Levels Raised 37 | . . 1 . 1 5 3 1 1 . 2 3 1 1 . 1 1 1 . . 1 1 . . 1 . 2 1 1 1 1 2 3 1 XP Earned 61876 | 6000 955 1019 200 843 7773 5582 500 1150 650 3818 3213 1936 1347 242 1530 1987 469 277 354 1059 1400 451 673 204 1356 1673 2506 1627 1585 1557 2846 3545 1549 XP Spent 59850 | 5170 . 2270 . 1525 6010 5060 100 1700 . 3040 4840 800 . 3700 250 2900 . . 1400 . 2900 . . . 1400 3410 1500 1000 900 2350 700 5300 1625 Upgrades 112 | 18 . 9 . 3 15 5 1 2 . 8 9 1 . 2 1 8 . . 1 . 1 . . . 1 2 1 2 2 2 1 12 5 Power Slot 2 | . . 1 . . . 1 . . . . . . . . . . . . . . . . . . . . . . . . . . . Propulsion Slot 4 | 1 . . . . 1 . . 1 . . . . . . . . . . 1 . . . . . . . . . . . . . . Utility Slot 11 | 2 . . . 1 1 2 . . . . 1 . . 1 . . . . . . 1 . . . . 1 . . . . . 1 . Weapon Slot 4 | 1 . . . . 2 . . . . . . . . . . . . . . . . . . . 1 . . . . . . . . Core Integrity 18 | . . . . . 4 . . . . . 4 . . . . . . . . . . . . . . . . . . . . 10 . Heat Dissipation 24 | . . 7 . . 4 2 . . . 8 1 . . . . . . . . . . . . . . . . 2 . . . . . Energy Generation 3 | . . . . . . . . . . . . . . . . 3 . . . . . . . . . . . . . . . . . Energy Storage 6 | . . . . 2 . . . . . . . . . . . 4 . . . . . . . . . . . . . . . . . Mass Support 2 | . . . . . . . 1 1 . . . . . . . . . . . . . . . . . . . . . . . . . Inventory Capacity 7 | 3 . 1 . . . . . . . . 1 . . . . . . . . . . . . . . . 1 . . 1 . . . Sight Range 2 | . . . . . . . . . . . . . . . . 1 . . . . . . . . . . . . . . . 1 . Sensor Range 14 | 8 . . . . . . . . . . . . . . 1 . . . . . . . . . . . . . . . . . 5 Terrain Scan Density 5 | 3 . . . . 1 . . . . . . . . . . . . . . . . . . . . 1 . . . . . . . Ranged Accuracy 4 | . . . . . . . . . . . . . . . . . . . . . . . . . . . . . 2 1 1 . . TH Resistance % 2 | . . . . . . . . . . . 2 . . . . . . . . . . . . . . . . . . . . . . TH Damage % 4 | . . . . . 2 . . . . . . 1 . 1 . . . . . . . . . . . . . . . . . . . Protomatter Created 9414 | . 132 42 . . 314 249 94 120 . 494 344 451 403 132 689 698 184 135 . 53 230 203 193 149 188 34 651 92 466 784 249 550 1091 Integrity Restored 8708 | . 77 75 . 218 499 164 45 2 . 482 271 202 230 112 55 1399 219 57 . 86 28 55 282 . 50 54 344 274 322 328 17 570 2191 Core 4916 | . 50 75 . 54 230 89 5 . . 225 78 74 149 37 . 744 141 36 . 32 22 38 188 . 37 22 169 7 132 193 10 278 1801 Parts 3792 | . 27 . . 164 269 75 40 2 . 257 193 128 81 75 55 655 78 21 . 54 6 17 94 . 13 32 175 267 190 135 7 292 390 Protomatter Decayed 9364 | . 26 54 . 1 181 335 84 46 . 428 371 819 449 120 752 230 104 93 878 189 185 24 152 118 164 11 314 907 547 653 251 563 315 Game ------ Seed EnhancedImpactThrower Manual? 0 Play Time 04:09:44 Cumulative 248.4 hours Start 2022.06.12 @ 17:57:16 End 2022.06.13 @ 00:09:38 Sessions 1 Manual Loads 0 Difficulty Explorer Special Mode Winter2019/RPGLIKE Game No. 84 Rogue 0 Adventurer 1 Explorer 83 Win Type - Total 16 Types 9/0/4/3/0/0/0/0/0 Lore% 87 Gallery% 86 Achievement% 74 Wizard Run 0 Options --------- ASCII 0 Keyboard 1 Movement Numpad Keybinds 0 Fullscreen 0 Font 14/Terminus Map View 76x50 Tactical HUD 1 Map Filters BRIGHTNESS(150) Filters NONE Steam 1 RUN: baad90b2-d673-491c-9461-9e8b7be48620